{"text_format":"1","workbook":"xlsx","n_sheets":3,"sheets":["自己評価書作成メニュー","自己評価書","マスターシート"],"not_rendered":{"charts":0,"images":2,"macros":1,"external_links":0,"defined_names":251,"comments":0,"pivot_tables":0},"unopened":[],"bounds":{"document_bytes":16777216,"sheet_cells":100000,"rows_first":2000,"rows_last":500,"rows_between":2000,"halvings":0,"cell_chars":16384,"cell_head_chars":4096},"cells_cut":0,"cells_raw":0,"read":"whole","date_system":"1900"}

{"sheet":"自己評価書作成メニュー","index":0,"n_rows":14,"n_cols":7,"rows_kept":14,"cut":false,"hidden":false,"merged":[]}
[]
[]
[]
[]
[]
[null,null,null,null,null,null,"住宅性能評価 自己評価書 読込用ファイル"]
[]
[null,null,null,null,null,null,"マクロを有効にしてご利用下さい。"]
[]
[]
[]
[]
[]
[null,null,null,null,null,null,"評価する住宅の種類のボタンをクリックして下さい。"]

{"sheet":"自己評価書","index":1,"n_rows":84,"n_cols":247,"rows_kept":84,"cut":false,"hidden":true,"merged":[[33,85,33,86],[33,87,33,88],[19,228,32,228],[83,173,83,174],[83,175,83,176],[83,177,83,178],[83,179,83,180],[83,184,83,185],[83,186,83,187],[83,188,83,189],[83,190,83,191],[80,173,80,174],[80,175,80,176],[80,177,80,178],[80,179,80,180],[80,184,80,185],[80,186,80,187],[80,188,80,189],[80,190,80,191],[81,173,81,174],[81,175,81,176],[81,177,81,178],[81,179,81,180],[81,184,81,185],[81,186,81,187],[81,188,81,189],[81,190,81,191],[82,173,82,174],[82,175,82,176],[82,177,82,178],[82,179,82,180],[82,184,82,185],[82,186,82,187],[82,188,82,189],[82,190,82,191],[77,173,77,174],[77,175,77,176],[77,177,77,178],[77,179,77,180],[77,184,77,185],[77,186,77,187],[77,188,77,189],[77,190,77,191],[78,173,78,174],[78,175,78,176],[78,177,78,178],[78,179,78,180],[78,184,78,185],[78,186,78,187],[78,188,78,189],[78,190,78,191],[79,173,79,174],[79,175,79,176],[79,177,79,178],[79,179,79,180],[79,184,79,185],[79,186,79,187],[79,188,79,189],[79,190,79,191],[74,173,74,174],[74,175,74,176],[74,177,74,178],[74,179,74,180],[74,184,74,185],[74,186,74,187],[74,188,74,189],[74,190,74,191],[75,173,75,174],[75,175,75,176],[75,177,75,178],[75,179,75,180],[75,184,75,185],[75,186,75,187],[75,188,75,189],[75,190,75,191],[76,173,76,174],[76,175,76,176],[76,177,76,178],[76,179,76,180],[76,184,76,185],[76,186,76,187],[76,188,76,189],[76,190,76,191],[71,173,71,174],[71,175,71,176],[71,177,71,178],[71,179,71,180],[71,184,71,185],[71,186,71,187],[71,188,71,189],[71,190,71,191],[72,173,72,174],[72,175,72,176],[72,177,72,178],[72,179,72,180],[72,184,72,185],[72,186,72,187],[72,188,72,189],[72,190,72,191],[73,173,73,174],[73,175,73,176],[73,177,73,178],[73,179,73,180],[73,184,73,185],[73,186,73,187],[73,188,73,189],[73,190,73,191],[68,173,68,174],[68,175,68,176],[68,177,68,178],[68,179,68,180],[68,184,68,185],[68,186,68,187],[68,188,68,189],[68,190,68,191],[69,173,69,174],[69,175,69,176],[69,177,69,178],[69,179,69,180],[69,184,69,185],[69,186,69,187],[69,188,69,189],[69,190,69,191],[70,173,70,174],[70,175,70,176],[70,177,70,178],[70,179,70,180],[70,184,70,185],[70,186,70,187],[70,188,70,189],[70,190,70,191],[65,173,65,174],[65,175,65,176],[65,177,65,178],[65,179,65,180],[65,184,65,185],[65,186,65,187],[65,188,65,189],[65,190,65,191],[66,173,66,174],[66,175,66,176],[66,177,66,178],[66,179,66,180],[66,184,66,185],[66,186,66,187],[66,188,66,189],[66,190,66,191],[67,173,67,174],[67,175,67,176],[67,177,67,178],[67,179,67,180],[67,184,67,185],[67,186,67,187],[67,188,67,189],[67,190,67,191],[62,173,62,174],[62,175,62,176],[62,177,62,178],[62,179,62,180],[62,184,62,185],[62,186,62,187],[62,188,62,189],[62,190,62,191],[63,173,63,174],[63,175,63,176],[63,177,63,178],[63,179,63,180],[63,184,63,185],[63,186,63,187],[63,188,63,189],[63,190,63,191],[64,173,64,174],[64,175,64,176],[64,177,64,178],[64,179,64,180],[64,184,64,185],[64,186,64,187],[64,188,64,189],[64,190,64,191],[59,173,59,174],[59,175,59,176],[59,177,59,178],[59,179,59,180],[59,184,59,185],[59,186,59,187],[59,188,59,189],[59,190,59,191],[60,173,60,174],[60,175,60,176],[60,177,60,178],[60,179,60,180],[60,184,60,185],[60,186,60,187],[60,188,60,189],[60,190,60,191],[61,173,61,174],[61,175,61,176],[61,177,61,178],[61,179,61,180],[61,184,61,185],[61,186,61,187],[61,188,61,189],[61,190,61,191],[56,173,56,174],[56,175,56,176],[56,177,56,178],[56,179,56,180],[56,184,56,185],[56,186,56,187],[56,188,56,189],[56,190,56,191],[57,173,57,174],[57,175,57,176],[57,177,57,178],[57,179,57,180],[57,184,57,185],[57,186,57,187],[57,188,57,189],[57,190,57,191],[58,173,58,174],[58,175,58,176],[58,177,58,178],[58,179,58,180],[58,184,58,185],[58,186,58,187],[58,188,58,189],[58,190,58,191],[53,173,53,174],[53,175,53,176],[53,177,53,178],[53,179,53,180],[53,184,53,185],[53,186,53,187],[53,188,53,189],[53,190,53,191],[54,173,54,174],[54,175,54,176],[54,177,54,178],[54,179,54,180],[54,184,54,185],[54,186,54,187],[54,188,54,189],[54,190,54,191],[55,173,55,174],[55,175,55,176],[55,177,55,178],[55,179,55,180],[55,184,55,185],[55,186,55,187],[55,188,55,189],[55,190,55,191],[50,173,50,174],[50,175,50,176],[50,177,50,178],[50,179,50,180],[50,184,50,185],[50,186,50,187],[50,188,50,189],[50,190,50,191],[51,173,51,174],[51,175,51,176],[51,177,51,178],[51,179,51,180],[51,184,51,185],[51,186,51,187],[51,188,51,189],[51,190,51,191],[52,173,52,174],[52,175,52,176],[52,177,52,178],[52,179,52,180],[52,184,52,185],[52,186,52,187],[52,188,52,189],[52,190,52,191],[47,173,47,174],[47,175,47,176],[47,177,47,178],[47,179,47,180],[47,184,47,185],[47,186,47,187],[47,188,47,189],[47,190,47,191],[48,173,48,174],[48,175,48,176],[48,177,48,178],[48,179,48,180],[48,184,48,185],[48,186,48,187],[48,188,48,189],[48,190,48,191],[49,173,49,174],[49,175,49,176],[49,177,49,178],[49,179,49,180],[49,184,49,185],[49,186,49,187],[49,188,49,189],[49,190,49,191],[44,173,44,174],[44,175,44,176],[44,177,44,178],[44,179,44,180],[44,184,44,185],[44,186,44,187],[44,188,44,189],[44,190,44,191],[45,173,45,174],[45,175,45,176],[45,177,45,178],[45,179,45,180],[45,184,45,185],[45,186,45,187],[45,188,45,189],[45,190,45,191],[46,173,46,174],[46,175,46,176],[46,177,46,178],[46,179,46,180],[46,184,46,185],[46,186,46,187],[46,188,46,189],[46,190,46,191],[41,173,41,174],[41,175,41,176],[41,177,41,178],[41,179,41,180],[41,184,41,185],[41,186,41,187],[41,188,41,189],[41,190,41,191],[42,173,42,174],[42,175,42,176],[42,177,42,178],[42,179,42,180],[42,184,42,185],[42,186,42,187],[42,188,42,189],[42,190,42,191],[43,173,43,174],[43,175,43,176],[43,177,43,178],[43,179,43,180],[43,184,43,185],[43,186,43,187],[43,188,43,189],[43,190,43,191],[38,173,38,174],[38,175,38,176],[38,177,38,178],[38,179,38,180],[38,184,38,185],[38,186,38,187],[38,188,38,189],[38,190,38,191],[39,173,39,174],[39,175,39,176],[39,177,39,178],[39,179,39,180],[39,184,39,185],[39,186,39,187],[39,188,39,189],[39,190,39,191],[40,173,40,174],[40,175,40,176],[40,177,40,178],[40,179,40,180],[40,184,40,185],[40,186,40,187],[40,188,40,189],[40,190,40,191],[35,173,35,174],[35,175,35,176],[35,177,35,178],[35,179,35,180],[35,184,35,185],[35,186,35,187],[35,188,35,189],[35,190,35,191],[36,173,36,174],[36,175,36,176],[36,177,36,178],[36,179,36,180],[36,184,36,185],[36,186,36,187],[36,188,36,189],[36,190,36,191],[37,173,37,174],[37,175,37,176],[37,177,37,178],[37,179,37,180],[37,184,37,185],[37,186,37,187],[37,188,37,189],[37,190,37,191],[33,173,33,174],[33,175,33,176],[33,177,33,178],[33,179,33,180],[33,184,33,185],[33,186,33,187],[33,188,33,189],[33,190,33,191],[20,181,32,181],[34,173,34,174],[34,175,34,176],[34,177,34,178],[34,179,34,180],[34,184,34,185],[34,186,34,187],[34,188,34,189],[34,190,34,191],[18,170,18,180],[18,181,18,191],[19,170,19,172],[19,173,19,174],[19,175,19,176],[19,177,19,178],[20,171,32,171],[20,172,32,172],[20,173,32,174],[20,175,32,176],[20,177,32,178],[20,184,32,185],[20,182,32,182],[20,183,32,183],[20,186,32,187],[20,188,32,189],[19,186,19,187],[19,188,19,189],[20,190,32,191],[19,190,19,191],[19,179,19,180],[19,181,19,183],[19,184,19,185],[61,64,61,65],[61,66,61,67],[61,68,61,71],[61,76,61,77],[61,78,61,79],[61,82,61,84],[61,96,61,98],[61,117,61,120],[61,129,61,132],[61,151,61,152],[61,155,61,156],[61,153,61,154],[20,170,32,170],[61,157,61,158],[61,162,61,163],[61,164,61,165],[61,166,61,167],[61,168,61,169],[59,157,59,158],[59,162,59,163],[60,157,60,158],[60,162,60,163],[60,129,60,132],[60,151,60,152],[60,155,60,156],[60,153,60,154],[59,96,59,98],[59,117,59,120],[57,68,57,71],[57,76,57,77],[57,78,57,79],[57,82,57,84],[60,61,60,63],[60,64,60,65],[60,66,60,67],[60,68,60,71],[60,76,60,77],[60,164,60,165],[60,166,60,167],[60,168,60,169],[61,1,61,2],[61,3,61,4],[61,5,61,6],[61,7,61,8],[61,9,61,10],[60,82,60,84],[60,96,60,98],[61,11,61,12],[61,13,61,14],[61,15,61,16],[61,21,61,23],[61,27,61,31],[61,32,61,34],[61,40,61,41],[61,43,61,44],[61,50,61,51],[61,52,61,54],[61,55,61,56],[61,59,61,60],[61,61,61,63],[60,3,60,4],[60,5,60,6],[60,7,60,8],[60,9,60,10],[60,11,60,12],[60,13,60,14],[60,15,60,16],[60,21,60,23],[60,27,60,31],[60,32,60,34],[60,78,60,79],[60,40,60,41],[60,43,60,44],[60,50,60,51],[60,52,60,54],[60,55,60,56],[60,59,60,60],[60,117,60,120],[58,168,58,169],[59,1,59,2],[59,3,59,4],[59,5,59,6],[59,7,59,8],[59,9,59,10],[59,11,59,12],[59,13,59,14],[59,15,59,16],[59,21,59,23],[59,27,59,31],[59,32,59,34],[59,40,59,41],[59,43,59,44],[59,50,59,51],[59,52,59,54],[59,55,59,56],[59,59,59,60],[59,61,59,63],[59,129,59,132],[59,151,59,152],[59,155,59,156],[59,64,59,65],[59,66,59,67],[59,68,59,71],[59,76,59,77],[59,78,59,79],[59,82,59,84],[59,153,59,154],[59,164,59,165],[59,166,59,167],[59,168,59,169],[58,61,58,63],[58,64,58,65],[58,66,58,67],[58,68,58,71],[58,76,58,77],[58,78,58,79],[58,82,58,84],[58,96,58,98],[58,117,58,120],[58,129,58,132],[58,151,58,152],[58,155,58,156],[58,157,58,158],[58,162,58,163],[58,153,58,154],[58,164,58,165],[58,166,58,167],[57,96,57,98],[57,117,57,120],[57,129,57,132],[57,151,57,152],[57,155,57,156],[57,157,57,158],[57,162,57,163],[57,153,57,154],[57,164,57,165],[57,166,57,167],[57,168,57,169],[58,1,58,2],[58,3,58,4],[58,5,58,6],[58,7,58,8],[58,9,58,10],[58,11,58,12],[58,13,58,14],[58,15,58,16],[58,21,58,23],[58,27,58,31],[58,32,58,34],[58,40,58,41],[58,43,58,44],[58,50,58,51],[58,52,58,54],[58,55,58,56],[58,59,58,60],[56,82,56,84],[56,96,56,98],[56,117,56,120],[56,129,56,132],[56,151,56,152],[56,155,56,156],[56,157,56,158],[56,162,56,163],[56,153,56,154],[56,164,56,165],[56,166,56,167],[56,168,56,169],[57,1,57,2],[57,3,57,4],[57,5,57,6],[57,7,57,8],[57,9,57,10],[57,11,57,12],[57,13,57,14],[57,15,57,16],[57,21,57,23],[57,27,57,31],[57,32,57,34],[57,40,57,41],[57,43,57,44],[57,50,57,51],[57,52,57,54],[57,55,57,56],[57,59,57,60],[57,61,57,63],[57,64,57,65],[57,66,57,67],[55,129,55,132],[55,151,55,152],[55,155,55,156],[55,157,55,158],[55,162,55,163],[55,153,55,154],[55,164,55,165],[55,166,55,167],[55,168,55,169],[56,1,56,2],[56,3,56,4],[56,5,56,6],[56,7,56,8],[56,9,56,10],[56,11,56,12],[56,13,56,14],[56,15,56,16],[56,21,56,23],[56,27,56,31],[56,32,56,34],[56,40,56,41],[56,43,56,44],[56,50,56,51],[56,52,56,54],[56,55,56,56],[56,59,56,60],[56,61,56,63],[56,64,56,65],[56,66,56,67],[56,68,56,71],[56,76,56,77],[56,78,56,79],[54,157,54,158],[54,162,54,163],[54,153,54,154],[54,164,54,165],[54,166,54,167],[54,168,54,169],[55,1,55,2],[55,3,55,4],[55,5,55,6],[55,7,55,8],[55,9,55,10],[55,11,55,12],[55,13,55,14],[55,15,55,16],[55,21,55,23],[55,27,55,31],[55,32,55,34],[55,40,55,41],[55,43,55,44],[55,50,55,51],[55,52,55,54],[55,55,55,56],[55,59,55,60],[55,61,55,63],[55,64,55,65],[55,66,55,67],[55,68,55,71],[55,76,55,77],[55,78,55,79],[55,82,55,84],[55,96,55,98],[55,117,55,120],[53,164,53,165],[53,166,53,167],[53,168,53,169],[54,1,54,2],[54,3,54,4],[54,5,54,6],[54,7,54,8],[54,9,54,10],[54,11,54,12],[54,13,54,14],[54,15,54,16],[54,21,54,23],[54,27,54,31],[54,32,54,34],[54,40,54,41],[54,43,54,44],[54,50,54,51],[54,52,54,54],[54,55,54,56],[54,59,54,60],[54,61,54,63],[54,64,54,65],[54,66,54,67],[54,68,54,71],[54,76,54,77],[54,78,54,79],[54,82,54,84],[54,96,54,98],[54,117,54,120],[54,129,54,132],[54,151,54,152],[54,155,54,156],[52,76,52,77],[52,78,52,79],[52,82,52,84],[52,96,52,98],[52,117,52,120],[52,129,52,132],[52,151,52,152],[52,155,52,156],[52,157,52,158],[52,162,52,163],[52,153,52,154],[52,164,52,165],[52,166,52,167],[52,168,52,169],[53,52,53,54],[53,55,53,56],[53,59,53,60],[53,61,53,63],[53,64,53,65],[53,66,53,67],[53,68,53,71],[53,76,53,77],[53,78,53,79],[53,82,53,84],[53,96,53,98],[53,117,53,120],[53,129,53,132],[53,151,53,152],[53,155,53,156],[53,157,53,158],[53,162,53,163],[53,153,53,154],[52,9,52,10],[52,11,52,12],[52,13,52,14],[52,15,52,16],[52,21,52,23],[52,27,52,31],[52,32,52,34],[52,40,52,41],[52,43,52,44],[52,50,52,51],[52,52,52,54],[52,55,52,56],[52,59,52,60],[52,61,52,63],[52,64,52,65],[52,66,52,67],[52,68,52,71],[51,64,51,65],[51,66,51,67],[51,68,51,71],[51,76,51,77],[51,78,51,79],[51,82,51,84],[51,96,51,98],[51,117,51,120],[51,129,51,132],[51,151,51,152],[51,155,51,156],[51,157,51,158],[51,162,51,163],[51,153,51,154],[51,164,51,165],[51,166,51,167],[51,168,51,169],[50,76,50,77],[50,78,50,79],[50,82,50,84],[50,96,50,98],[50,117,50,120],[50,129,50,132],[50,151,50,152],[50,155,50,156],[50,157,50,158],[50,162,50,163],[50,153,50,154],[50,164,50,165],[50,166,50,167],[50,168,50,169],[51,1,51,2],[51,3,51,4],[51,5,51,6],[51,7,51,8],[51,9,51,10],[51,11,51,12],[51,13,51,14],[51,15,51,16],[51,21,51,23],[51,27,51,31],[51,32,51,34],[51,40,51,41],[51,43,51,44],[51,50,51,51],[51,52,51,54],[51,55,51,56],[51,59,51,60],[51,61,51,63],[49,96,49,98],[49,117,49,120],[49,129,49,132],[49,151,49,152],[49,155,49,156],[49,157,49,158],[49,162,49,163],[49,153,49,154],[49,164,49,165],[49,166,49,167],[49,168,49,169],[50,1,50,2],[50,3,50,4],[50,5,50,6],[50,7,50,8],[50,9,50,10],[50,11,50,12],[50,13,50,14],[50,15,50,16],[50,21,50,23],[50,27,50,31],[50,32,50,34],[50,40,50,41],[50,43,50,44],[50,50,50,51],[50,52,50,54],[50,55,50,56],[50,59,50,60],[50,61,50,63],[50,64,50,65],[50,66,50,67],[50,68,50,71],[48,151,48,152],[48,155,48,156],[48,157,48,158],[48,162,48,163],[48,153,48,154],[48,164,48,165],[48,166,48,167],[48,168,48,169],[49,1,49,2],[49,3,49,4],[49,5,49,6],[49,7,49,8],[49,9,49,10],[49,11,49,12],[49,13,49,14],[49,15,49,16],[49,21,49,23],[49,27,49,31],[49,32,49,34],[49,40,49,41],[49,43,49,44],[49,50,49,51],[49,52,49,54],[49,55,49,56],[49,59,49,60],[49,61,49,63],[49,64,49,65],[49,66,49,67],[49,68,49,71],[49,76,49,77],[49,78,49,79],[49,82,49,84],[47,162,47,163],[47,153,47,154],[47,164,47,165],[47,166,47,167],[47,168,47,169],[48,1,48,2],[48,3,48,4],[48,5,48,6],[48,7,48,8],[48,9,48,10],[48,11,48,12],[48,13,48,14],[48,15,48,16],[48,21,48,23],[48,27,48,31],[48,32,48,34],[48,40,48,41],[48,43,48,44],[48,50,48,51],[48,52,48,54],[48,55,48,56],[48,59,48,60],[48,61,48,63],[48,64,48,65],[48,66,48,67],[48,68,48,71],[48,76,48,77],[48,78,48,79],[48,82,48,84],[48,96,48,98],[48,117,48,120],[48,129,48,132],[46,166,46,167],[46,168,46,169],[47,1,47,2],[47,3,47,4],[47,5,47,6],[47,7,47,8],[47,9,47,10],[47,11,47,12],[47,13,47,14],[47,15,47,16],[47,21,47,23],[47,27,47,31],[47,32,47,34],[47,40,47,41],[47,43,47,44],[47,50,47,51],[47,52,47,54],[47,55,47,56],[47,59,47,60],[47,61,47,63],[47,64,47,65],[47,66,47,67],[47,68,47,71],[47,76,47,77],[47,78,47,79],[47,82,47,84],[47,96,47,98],[47,117,47,120],[47,129,47,132],[47,151,47,152],[47,155,47,156],[47,157,47,158],[46,59,46,60],[46,61,46,63],[46,64,46,65],[46,66,46,67],[46,68,46,71],[46,76,46,77],[46,78,46,79],[46,82,46,84],[46,96,46,98],[46,117,46,120],[46,129,46,132],[46,151,46,152],[46,155,46,156],[46,157,46,158],[46,162,46,163],[46,153,46,154],[46,164,46,165],[45,66,45,67],[45,68,45,71],[45,76,45,77],[45,78,45,79],[45,82,45,84],[45,96,45,98],[45,117,45,120],[45,129,45,132],[45,151,45,152],[45,155,45,156],[45,157,45,158],[45,162,45,163],[45,153,45,154],[45,164,45,165],[45,166,45,167],[45,168,45,169],[46,1,46,2],[46,3,46,4],[46,5,46,6],[46,7,46,8],[46,9,46,10],[46,11,46,12],[46,13,46,14],[46,15,46,16],[46,21,46,23],[46,27,46,31],[46,32,46,34],[46,40,46,41],[46,43,46,44],[46,50,46,51],[46,52,46,54],[46,55,46,56],[44,78,44,79],[44,82,44,84],[44,96,44,98],[44,117,44,120],[44,129,44,132],[44,151,44,152],[44,155,44,156]],"merged_total":2662,"flags":["merged_cut"]}
[]
[null,null,null,null,null,"件名："]
[]
["（住棟部分）"]
[]
[null,null,null,null,null,null,null,null,null,null,null,null,null,null,null,null,null,"１構造の安定",null,null,null,null,null,null,null,null,null,null,null,null,null,null,"1-6.",null,"地盤又は杭の許容支持力等及びその設定方法",null,null,null,null,null,null,null,null,null,null,null,null,null,null,null,"1-7.",null,"基礎の構造方法及び形式等",null,null,null,null,null,null,null,null,null,null,null,null,null,null,null,null,null,null,null,null,null,null,2,"火災時の安全",null,null,null,null,null,null,null,null,null,null,null,null,null,null,null,null,4,"維持管理への配慮",null,null,null,null,null,null,null,null,null,null,null,null,null,null,null,null,null,null,null,null,null,null,null,null,null,null,null,null,null,null,null,null,null,null,null,null,null,null,null,null,null,null,null,null,null,null,null,null,null,null,null,null,null,null,null,null,null,null,null,null,null,null,null,null,null,null,null,null,null,null,null,null,null,null,null,null,null,null,null,null,null,null,null,null,null,null,null,null,null,null,null,null,null,null,null,null,null,null,null,null,null,null,null,null,null,null,null,null,null,null,null,null,null,null,null,null,null,null,null,null,null,null,null,null,null,null,null,null,null,null,null,null,null,null,null,null,null,null,null,null,null,null,null,"読込種類","読込判定に使用（1: 概要、2: 等級）",2]
[null,null,null,null,null,null,null,null,null,null,null,null,null,null,null,null,null,"1-1.",null,"耐震等級(倒壊等防止)",null,null,null,null,null,null,"[0-3]",null,null,null,null,null,null,"地盤の許容応力度",null,null,null,null,null,{"$f":"IF(AO7=\"\",\"□\",\"■\")","v":"□"},null,null,null,null,null,null,"kN/㎡",null,null,null,"a.",null,"直接基礎",null,null,"構造方法",null,{"$f":"IF(BG7=\"\",\"□\",\"■\")","v":"□"},null,null,null,null,null,null,null,null,null,null,null,null,null,null,null,null,null,"2-5.",null,null,"耐火等級(開口部)",null,null,null,null,null,null,null,null,null,"[0-3]",null,null,null,null,"4-2.",null,"維持管理対策等級(共用配管)",null,null,null,null,null,null,null,null,null,null,"[0-3]",null,null,null,null,null,null,null,null,null,null,null,null,null,null,null,null,null,null,null,null,null,null,null,null,null,null,null,null,null,null,null,null,null,null,null,null,null,null,null,null,null,null,null,null,null,null,null,null,null,null,null,null,null,null,null,null,null,null,null,null,null,null,null,null,null,null,null,null,null,null,null,null,null,null,null,null,null,null,null,null,null,null,null,null,null,null,null,null,null,null,null,null,null,null,null,null,null,null,null,null,null,null,null,null,null,null,null,null,null,null,null,null,null,null,null,null,null,null,null,null,null,null,null,null,null,null,null,null,null,null,null,"評価の種類","〃",1]
[null,null,null,null,null,null,null,null,null,null,null,null,null,null,null,null,null,"1-2.",null,"耐震等級(損傷防止)",null,null,null,null,null,null,"[0-3]",null,null,null,null,null,null,null,null,null,null,null,null,"□","地盤改良後の数値とする",null,null,null,null,null,null,null,null,null,null,null,null,null,null,"形式",null,null,null,null,null,null,null,null,null,null,null,null,null,null,null,null,null,null,null,"2-6.",null,null,"耐火等級(開口部以外)",null,null,null,null,null,null,null,null,null,"[0-4]",null,null,null,null,"4-3.",null,"更新対策等級(共用排水管)",null,null,null,null,null,null,null,null,null,null,"[0-3]",null,null,null,null,null,null,null,null,null,null,null,null,null,null,null,null,null,null,null,null,null,null,null,null,null,null,null,null,null,null,null,null,null,null,null,null,null,null,null,null,null,null,null,null,null,null,null,null,null,null,null,null,null,null,null,null,null,null,null,null,null,null,null,null,null,null,null,null,null,null,null,null,null,null,null,null,null,null,null,null,null,null,null,null,null,null,null,null,null,null,null,null,null,null,null,null,null,null,null,null,null,null,null,null,null,null,null,null,null,null,null,null,null,null,null,null,null,null,null,null,null,null,null,null,null,null,null,null,null,null,null,"住宅の種類","〃",2]
[null,null,null,null,null,null,null,null,null,null,null,null,null,null,null,null,null,"1-3.",null,"免震構造物",null,null,null,null,null,null,null,null,null,null,null,null,null,"杭の許容支持力",null,null,null,null,null,{"$f":"IF(AO9=\"\",\"□\",\"■\")","v":"□"},null,null,null,null,null,null,"kN/本",null,null,null,"b.",null,"杭基礎",null,null,"杭種",null,{"$f":"IF(BG9=\"\",\"□\",\"■\")","v":"□"},null,null,null,null,null,null,null,null,null,null,null,null,null,null,null,null,null,3,"劣化の軽減",null,null,null,null,null,null,null,null,null,null,null,null,null,null,null,null,null,null,"共用排水立管の位置",null,null,null,null,null,"□","共用廊下に面する共用部分",null,null,null,null,null,null,null,null,null,null,null,null,null,null,null,null,null,null,null,null,null,null,null,null,null,null,null,null,null,null,null,null,null,null,null,null,null,null,null,null,null,null,null,null,null,null,null,null,null,null,null,null,null,null,null,null,null,null,null,null,null,null,null,null,null,null,null,null,null,null,null,null,null,null,null,null,null,null,null,null,null,null,null,null,null,null,null,null,null,null,null,null,null,null,null,null,null,null,null,null,null,null,null,null,null,null,null,null,null,null,null,null,null,null,null,null,null,null,null,null,null,null,null,null,null,null,null,null,null,null,null,null,null,null,null,"1.3 免震構造物 免震建築物","読込データとして使用",{"$f":"IF(work_tower_N01_3=マスターシート!C4, \"○\", \"\")","v":""}]
[null,null,null,null,null,null,null,null,null,null,null,null,null,null,null,null,null,"1-4.",null,"耐風等級",null,null,null,null,null,null,"[1-2]",null,null,null,null,null,null,"杭状改良地盤の許容支持力度",null,null,null,null,null,{"$f":"IF(AO10=\"\",\"□\",\"■\")","v":"□"},null,null,null,null,null,null,"kN/㎡",null,null,null,null,null,null,null,null,null,null,null,null,null,null,null,null,null,null,null,null,null,null,null,null,null,null,null,null,null,null,"3-1.","劣化対策等級",null,null,null,null,null,null,null,null,null,"[1-3]",null,null,null,null,null,null,null,null,null,null,null,null,"□","外壁面、吹き抜け等の住戸外周部",null,null,null,null,null,null,null,null,null,null,null,null,null,null,null,null,null,null,null,null,null,null,null,null,null,null,null,null,null,null,null,null,null,null,null,null,null,null,null,null,null,null,null,null,null,null,null,null,null,null,null,null,null,null,null,null,null,null,null,null,null,null,null,null,null,null,null,null,null,null,null,null,null,null,null,null,null,null,null,null,null,null,null,null,null,null,null,null,null,null,null,null,null,null,null,null,null,null,null,null,null,null,null,null,null,null,null,null,null,null,null,null,null,null,null,null,null,null,null,null,null,null,null,null,null,null,null,null,null,null,null,null,null,null,null,"1.3 免震構造物 その他","〃",{"$f":"IF(work_tower_N01_3=マスターシート!C5, \"○\", \"\")","v":""}]
[null,null,null,null,null,null,null,null,null,null,null,null,null,null,null,null,null,"1-5.",null,"耐積雪等級",null,null,null,null,null,null,"[0-2]",null,null,null,null,null,null,"杭状改良地盤の許容支持力",null,null,null,null,null,{"$f":"IF(AO11=\"\",\"□\",\"■\")","v":"□"},null,null,null,null,null,null,"kN/本",null,null,null,null,null,null,null,null,"杭径",null,null,null,null,null,null,null,null,null,null,"cm",null,null,null,null,null,null,null,null,null,null,null,null,null,null,null,null,null,null,null,null,null,null,null,null,null,null,null,null,null,null,null,null,null,null,"□","バルコニー",null,null,null,null,null,null,null,null,null,null,null,null,null,null,null,null,null,null,null,null,null,null,null,null,null,null,null,null,null,null,null,null,null,null,null,null,null,null,null,null,null,null,null,null,null,null,null,null,null,null,null,null,null,null,null,null,null,null,null,null,null,null,null,null,null,null,null,null,null,null,null,null,null,null,null,null,null,null,null,null,null,null,null,null,null,null,null,null,null,null,null,null,null,null,null,null,null,null,null,null,null,null,null,null,null,null,null,null,null,null,null,null,null,null,null,null,null,null,null,null,null,null,null,null,null,null,null,null,null,null,null,null,null,null,null,"1.6 地盤調査方法等","〃",{"$f":"work_tower_N01_6_JIBAN_TYOUSA_1 & work_tower_N01_6_JIBAN_TYOUSA_2 & work_tower_N01_6_JIBAN_TYOUSA_3 & work_tower_N01_6_JIBAN_TYOUSA_4","v":""}]
[null,null,null,null,null,null,null,null,null,null,null,null,null,null,null,null,null,null,null,null,null,null,null,null,null,null,null,null,null,null,null,null,null,"地盤調査方法等",null,null,null,null,null,null,null,null,null,null,null,null,null,null,null,null,null,null,null,null,null,"杭長",null,null,null,null,null,null,null,null,null,null,"ｍ",null,null,null,null,null,null,null,null,null,null,null,null,null,null,null,null,null,null,null,null,null,null,null,null,null,null,null,null,null,null,null,null,null,null,"□","住戸専用部",null,null,null,null,null,null,null,null,null,null,null,null,null,null,null,null,null,null,null,null,null,null,null,null,null,null,null,null,null,null,null,null,null,null,null,null,null,null,null,null,null,null,null,null,null,null,null,null,null,null,null,null,null,null,null,null,null,null,null,null,null,null,null,null,null,null,null,null,null,null,null,null,null,null,null,null,null,null,null,null,null,null,null,null,null,null,null,null,null,null,null,null,null,null,null,null,null,null,null,null,null,null,null,null,null,null,null,null,null,null,null,null,null,null,null,null,null,null,null,null,null,null,null,null,null,null,null,null,null,null,null,null,null,null,null,"1.7 杭径","〃",{"$f":"IF(work_tower_N01_7_KUI_KEI_max <> \"\", work_tower_N01_7_KUI_KEI_max, \"\") & IF(work_tower_N01_7_KUI_KEI_max <> \"\", IF(work_tower_N01_7_KUI_KEI_max <> \"\", \" \", \"\"), \"\") & IF(work_tower_N01_7_KUI_KEI_min <> \"\", work_tower_N01_7_KUI_KEI_min, \"\")","v":""},{"$f":"IF(work_tower_N01_7_KUI_KEI_max <> \"\", \"最大値：\" & work_tower_N01_7_KUI_KEI_max, \"\") & IF(work_tower_N01_7_KUI_KEI_max <> \"\", IF(work_tower_N01_7_KUI_KEI_max <> \"\", \" \", \"\"), \"\") & IF(work_tower_N01_7_KUI_KEI_min <> \"\", \"最小値：\" & work_tower_N01_7_KUI_KEI_min, \"\")","v":""}]
[null,null,null,null,null,null,null,null,null,null,null,null,null,null,null,null,null,null,null,null,null,null,null,null,null,null,null,null,null,null,null,null,null,null,null,null,null,null,null,null,null,null,null,null,null,null,null,null,null,null,null,null,null,null,null,null,null,null,null,null,null,null,null,null,null,null,null,null,null,null,null,null,null,null,null,null,null,null,null,null,null,null,null,null,null,null,null,null,null,null,null,null,null,null,null,null,null,null,null,null,null,"□","その他",null,null,null,null,null,null,null,null,null,null,null,null,null,null,null,null,null,null,null,null,null,null,null,null,null,null,null,null,null,null,null,null,null,null,null,null,null,null,null,null,null,null,null,null,null,null,null,null,null,null,null,null,null,null,null,null,null,null,null,null,null,null,null,null,null,null,null,null,null,null,null,null,null,null,null,null,null,null,null,null,null,null,null,null,null,null,null,null,null,null,null,null,null,null,null,null,null,null,null,null,null,null,null,null,null,null,null,null,null,null,null,null,null,null,null,null,null,null,null,null,null,null,null,null,null,null,null,null,null,null,null,null,null,null,null,"1.7 杭長","〃",{"$f":"IF(work_tower_N01_7_KUI_TYOU_max <> \"\", work_tower_N01_7_KUI_TYOU_max, \"\") & IF(work_tower_N01_7_KUI_TYOU_max <> \"\", IF(work_tower_N01_7_KUI_TYOU_min <> \"\", \" \", \"\"), \"\") & IF(work_tower_N01_7_KUI_TYOU_min <> \"\", work_tower_N01_7_KUI_TYOU_min, \"\")","v":""},{"$f":"IF(work_tower_N01_7_KUI_TYOU_max <> \"\", \"最大値：\" & work_tower_N01_7_KUI_TYOU_max, \"\") & IF(work_tower_N01_7_KUI_TYOU_max <> \"\", IF(work_tower_N01_7_KUI_TYOU_min <> \"\", \" \", \"\"), \"\") & IF(work_tower_N01_7_KUI_TYOU_min <> \"\", \"最小値：\" & work_tower_N01_7_KUI_TYOU_min, \"\")","v":""}]
[null,null,null,null,null,null,null,null,null,null,null,null,null,null,null,null,null,null,null,null,null,null,null,null,null,null,null,null,null,null,null,null,null,"地盤改良方法",null,null,null,null,null,null,null,null,null,null,null,null,null,null,null,null,null,null,null,null,null,null,null,null,null,null,null,null,null,null,null,null,null,null,null,null,null,null,null,null,null,null,null,null,null,null,null,null,null,null,null,null,null,null,null,null,null,null,null,null,null,"その他備考",null,null,null,null,null,""]
[]
[null,null,null,null,null,null,null,null,null,null,null,null,null,null,null,null,null,null,null,null,null,null,null,null,null,null,null,null,null,null,null,null,null,null,null,null,null,null,null,null,null,null,null,null,null,null,null,null,null,null,null,null,null,null,null,null,null,null,null,null,null,"※その２：メゾネットの場合",null,null,null,null,null,null,null,null,null,null,null,null,null,null,null,null,null,null,null,null,null,null,null,null,null,null,null,null,null,null,null,null,null,null,null,null,null,null,null,null,null,null,null,null,null,null,"※方位別開口比の値が100の場合には、[%以上]を[%]と読み替える。",null,null,null,null,null,null,null,null,null,null,null,null,null,null,null,null,null,null,"相当スラブ厚：0:該当なし　a:27cm以上　b:20cm以上　c:15cm以上　d:11cm以上　e:その他"]
["（住戸部分）",null,null,null,null,null,null,null,null,null,null,null,null,null,null,null,null,null,null,null,null,null,null,null,null,null,null,null,null,null,null,null,null,null,null,null,null,null,null,null,null,null,null,null,null,null,null,null,null,null,null,null,null,null,null,null,null,null,null,null,null,null,null,null,null,null,null,null,null,null,null,null,null,null,null,null,null,null,null,null,null,null,null,null,null,null,null,null,null,null,null,null,null,null,null,null,null,null,null,null,null,null,null,null,null,null,null,null,"※方位別開口比の値が[-]の場合には、[0%]と読み替える。",null,null,null,null,null,null,null,null,null,null,null,null,null,null,null,null,null,null,"レベル低減量：0:該当なし　a:30db　b:25db　c:20db　d:15db　e:その他"]
["通し番号","住戸番号　新",null,"住戸番号",null,"階",null,"タイプ",null,"居室の床面積",null,"専用部分の面積",null,"バルコニー等専用使用部分の面積",null,"合計床面積",null,"住戸への経路（共用階段）","住戸への経路（共用廊下）","住戸への経路（エレベーター）","界壁","界床",null,null,"2.火災時の安全",null,null,null,null,null,null,null,null,null,null,null,null,null,null,null,null,null,null,null,null,null,"4.維持管理・更新対策",null,null,null,null,null,null,null,null,null,null,null,null,null,null,null,null,null,null,null,null,null,null,null,null,null,null,null,"5.温熱",null,null,null,null,null,null,null,null,null,null,null,null,null,null,"6.空気環境",null,null,null,null,null,null,null,null,null,null,null,null,null,null,null,null,null,null,null,null,null,"7.光・視環境",null,null,null,null,null,"　8.音環境",null,null,null,null,null,null,null,null,null,null,null,null,null,null,null,null,null,null,null,null,null,null,null,null,null,null,null,null,"9.高齢",null,"10.防犯",null,null,null,null,null,null,null,null,null,null,null,null,null,null,null,null,null,null,null,null,null,"10.防犯"]
[null,null,null,null,null,null,null,null,null,null,null,null,null,null,null,null,null,null,null,null,null,null,null,null,1,2,"3.避難安全対策",null,null,null,null,null,null,null,null,null,"4.脱出対策",null,null,null,null,null,null,null,null,7,1,"4.更新対策",null,null,null,null,null,null,null,null,null,null,null,null,null,null,null,null,null,null,null,null,null,null,null,null,null,null,1,null,null,null,null,null,2,null,null,null,null,null,null,null,null,"1.ホルムアルデヒドﾞ対策",null,null,null,null,"2.換気対策",null,null,null,null,null,null,null,null,null,null,null,null,null,null,null,null,1,"2.方位別開口比",null,null,null,null,"1.重量床衝撃音対策",null,null,null,null,null,null,null,null,null,null,null,null,"2．軽量床衝撃音対策",null,null,null,null,null,null,null,null,null,null,"透過損失等級",null,null,null,null,1,2,"1.開口部の侵入防止対策（１）",null,null,null,null,null,null,null,null,null,null,"1.開口部の侵入防止対策（２）",null,null,null,null,null,null,null,null,null,null,"1.開口部の侵入防止対策（３）",null,null,null,null,null,null,null,null,null,null,"1.開口部の侵入防止対策（４）"]
[null,null,null,null,null,null,null,null,null,null,null,null,null,null,null,null,null,null,null,null,null,null,null,null,"感知警報装置（自住戸）","感知警報装置（他住戸）","該当なし","排煙形式",null,null,null,null,"平面形状",null,null,"隔壁開口部等級","該当なし","直通バルコニー","隣戸バルコニー","避難器具",null,null,"その他",null,null,"界壁及び界床","維持管理（専用配管）","該当なし","（その１）",null,null,null,null,null,null,null,null,"（その２）",null,null,null,null,null,null,null,null,"間取りの変更の障害",null,"計算方法",null,null,null,"省エネルギー対策",null,"断熱等性能",null,null,null,null,null,"一次エネルギー消費量",null,null,null,null,null,null,null,null,"使用建材",null,null,"等級",null,"居室",null,null,null,null,"便所",null,null,null,"浴室",null,null,null,"台所",null,null,null,"単純開口率","北","東","南","西","真上","対策等級・相当スラブ厚の区別",null,null,null,"対策等級",null,null,null,"相当スラブ厚",null,null,null,"対策等級・レベル低減量の区別",null,null,null,"対策等級",null,null,null,"ﾚﾍﾞﾙ低減量",null,null,null,3,"4.外壁開口部",null,null,null,"高齢者等配慮(専用部分)","高齢者等配慮(共用部分)","住戸位置",null,null,"a",null,"b",null,"b",null,"c",null,"住戸位置",null,null,"a",null,"b(bⅰ)",null,"bⅱ",null,"c",null,"住戸位置",null,null,"a",null,"b(bⅰ)",null,"bⅱ",null,"c",null,"住戸位置",null,null,"a",null,"b(bⅰ)",null,"bⅱ",null,"c",null,"2-1選択","2-2選択","2-3選択","2-4選択","2-7選択","4-1選択","4-4選択","5-1選択","5-2選択","6-1選択","6-2選択","7-1選択","7-2選択","8-1選択","対策等級",null,null,null,"相当スラブ厚",null,null,null,"8-2選択","対策等級",null,null,null,"ﾚﾍﾞﾙ低減量",null,null,null,"8-3選択","8-4選択","9-1選択","9-2選択","10-1選択","10-2建物出入口の以外の階×表記","前処理（出入り口","前処理（開口部（共用部等）","前処理（開口部（バルコニー等）","前処理（その他開口部",null,null,null,null,null,null,null,null,null,"※通常非表示読込項目"]
[null,null,null,null,null,null,null,null,null,null,null,null,null,null,null,null,null,null,null,null,null,null,null,null,null,null,null,null,null,null,null,null,null,null,null,null,null,null,null,null,"種類",null,null,"種類",null,null,null,null,"地上･地下･その他","階","躯体天井高",null,"最も低い部分",null,null,null,null,"地上･地下･その他","階","躯体天井高",null,"最も低い部分",null,null,null,null,null,null,null,null,null,null,null,null,null,null,"外皮平均熱貫流率",null,"冷房期の平均日射熱取得率",null,null,null,"床面積当たりの設計一次エネルギー消費量",null,null,"一次エネルギー\n消費量の削減率",null,null,null,"製材等","特定建材","その他","内装材","天井裏等","機械換気","その他","その他内容",null,null,"該当なし","機械換気設備","換気のできる窓","なし","該当なし","機械換気設備","換気のできる窓","なし","該当なし","機械換気設備","換気のできる窓","なし",null,null,null,null,null,null,null,null,null,null,"上階",null,"下階",null,"上階",null,"下階",null,null,null,null,null,"上階",null,"下階",null,"上階",null,"下階",null,"界壁","北","東","南","西",null,null,"建物出入口の存する階","地下･地上･屋上","階数","出入口",null,"開口部（共用部等）",null,"開口部（バルコニー等）",null,"その他開口部",null,"建物出入口の存する階","地下･地上･屋上","階数","出入口",null,"開口部（共用部等）",null,"開口部（バルコニー等）",null,"その他開口部",null,"建物出入口の存する階","地下･地上･屋上","階数","出入口",null,"開口部（共用部等）",null,"開口部（バルコニー等）",null,"その他開口部",null,"建物出入口の存する階","地下･地上･屋上","階数","出入口",null,"開口部（共用部等）",null,"開口部（バルコニー等）",null,"その他開口部",null,null,null,null,null,null,null,null,null,null,null,null,null,null,null,"上階",null,"下階",null,"上階",null,"下階",null,null,"上階",null,"下階",null,"上階",null,"下階",null,null,null,null,null,null,null,null,null,null,null,null,null,null,null,null,null,null,null,null,"住棟の選択・非選択のチェックボックスの作成場所（必須のチェックボックスも含む）"]
[null,null,null,null,null,null,null,null,null,null,null,null,null,null,null,null,null,null,null,null,null,null,null,null,null,null,null,null,null,null,null,null,null,null,null,null,null,null,null,null,null,null,null,null,null,null,null,null,null,null,null,null,"部位",null,null,"内法高さ",null,null,null,null,null,"部位",null,null,"内法高さ",null,null,null,null,null,null,null,null,null,null,null,null,null,null,null,null,null,null,null,null,null,null,null,null,null,null,null,null,null,null,null,null,null,null,null,null,null,null,null,null,null,null,null,null,null,null,null,null,null,null,null,null,null,null,null,null,"最高","最低","最高","最低","最高","最低","最高","最低",null,null,null,null,"最高","最低","最高","最低","最高","最低","最高","最低",null,null,null,null,null,null,null,null,null,null,null,null,null,null,null,null,null,null,null,null,null,null,null,null,null,null,null,null,null,null,null,null,null,null,null,null,null,null,null,null,null,null,null,null,null,null,null,null,null,null,null,null,null,null,null,null,null,null,null,null,null,null,null,null,null,"最高","最低","最高","最低","最高","最低","最高","最低",null,"最高","最低","最高","最低","最高","最低","最高","最低",null,null,null,null,null,null,null,null,null,null,null,null,null,null,null,null,null,null,null,1,"1-1.",null,{"$f":"IF(OR(CL7=\"\"),\"\",1)","v":""},"2-5."]
[null,null,null,null,null,null,null,null,null,null,null,null,null,null,null,null,null,null,null,null,null,null,null,null,null,null,null,null,null,null,null,null,null,null,null,null,null,null,null,null,null,null,null,null,null,null,null,null,null,null,null,null,null,null,null,null,null,null,null,null,null,null,null,null,null,null,null,null,null,null,null,null,null,null,null,null,null,null,null,null,null,null,null,null,null,null,null,null,null,null,null,null,null,null,null,null,null,null,null,null,null,null,null,null,null,null,null,null,null,null,null,null,null,null,null,null,null,null,null,null,null,null,null,null,null,null,null,null,null,null,null,null,null,null,null,null,null,null,null,null,null,null,null,null,null,null,null,null,null,null,null,null,null,null,null,null,null,null,null,null,null,null,null,null,null,null,null,null,null,null,null,null,null,null,null,null,null,null,null,null,null,null,null,null,null,null,null,null,null,null,null,null,null,null,null,null,null,null,null,null,null,null,null,null,null,null,null,null,null,null,null,null,null,null,null,null,null,null,null,null,null,null,null,null,null,null,null,null,null,null,null,null,null,null,null,null,null,null,null,null,null,null,{"$f":"IF(OR(AB8=\"\"),\"\",1)","v":""},"1-2.",null,{"$f":"IF(OR(CL8=\"\"),\"\",1)","v":""},"2-6."]
[null,null,null,null,null,null,null,null,null,null,null,null,null,null,null,null,null,null,null,null,null,null,null,null,null,null,null,null,null,null,null,null,null,null,null,null,null,null,null,null,null,null,null,null,null,null,null,null,null,null,null,null,null,null,null,null,null,null,null,null,null,null,null,null,null,null,null,null,null,null,null,null,null,null,null,null,null,null,null,null,null,null,null,null,null,null,null,null,null,null,null,null,null,null,null,null,null,null,null,null,null,null,null,null,null,null,null,null,null,null,null,null,null,null,null,null,null,null,null,null,null,null,null,null,null,null,null,null,null,null,null,null,null,null,null,null,null,null,null,null,null,null,null,null,null,null,null,null,null,null,null,null,null,null,null,null,null,null,null,null,null,null,null,null,null,null,null,null,null,null,null,null,null,null,null,null,null,null,null,null,null,null,null,null,null,null,null,null,null,null,null,null,null,null,null,null,null,null,null,null,null,null,null,null,null,null,null,null,null,null,null,null,null,null,null,null,null,null,null,null,null,null,null,null,null,null,null,null,null,null,null,null,null,null,null,null,null,null,null,null,null,null,1,"1-3."]
[null,null,null,null,null,null,null,null,null,null,null,null,null,null,null,null,null,null,null,null,null,null,null,null,null,null,null,null,null,null,null,null,null,null,null,null,null,null,null,null,null,null,null,null,null,null,null,null,null,null,null,null,null,null,null,null,null,null,null,null,null,null,null,null,null,null,null,null,null,null,null,null,null,null,null,null,null,null,null,null,null,"[145678]",null,null,null,null,null,null,null,null,null,null,null,null,null,null,null,null,null,null,null,null,null,null,null,null,null,null,null,null,null,null,null,null,null,null,null,null,null,null,null,null,null,null,null,null,null,null,null,null,null,null,null,null,null,null,null,null,null,null,null,null,null,null,null,null,null,null,null,null,null,null,null,null,null,null,null,null,null,null,null,null,null,null,null,null,null,null,null,null,null,null,null,null,null,null,null,null,null,null,null,null,null,null,null,null,null,null,null,null,null,null,null,null,null,null,null,null,null,null,null,null,null,null,null,null,null,null,null,null,null,null,null,null,null,null,null,null,null,null,null,null,null,null,null,null,null,null,null,null,null,null,null,null,null,null,null,null,null,null,null,null,{"$f":"IF(OR(AB10=\"\"),\"\",1)","v":""},"1-4.",null,1,"3-1."]
[null,null,null,null,null,null,null,null,null,null,null,null,null,null,null,null,null,null,null,null,null,null,null,null,null,null,null,null,null,null,null,null,null,null,null,null,null,null,null,null,null,null,null,null,null,null,null,null,null,null,null,null,null,null,null,null,null,null,null,null,null,null,null,null,null,null,null,null,null,null,null,null,null,null,null,null,null,null,null,null,null,null,null,null,null,null,null,null,null,null,null,null,null,null,null,null,null,null,null,null,null,null,null,null,null,null,null,null,null,null,null,null,null,null,null,null,null,null,null,null,null,null,null,null,null,null,null,null,null,null,null,null,null,null,null,null,null,null,null,null,null,null,null,null,null,null,null,null,null,null,null,null,null,null,null,null,null,null,null,null,null,null,null,null,null,null,null,null,null,null,null,null,null,null,null,null,null,null,null,null,null,null,null,null,null,null,null,null,null,null,null,null,null,null,null,null,null,null,null,null,null,null,null,null,null,null,null,null,null,null,null,null,null,null,null,null,null,null,null,null,null,null,null,null,null,null,null,null,null,null,null,null,null,null,null,null,null,null,null,null,null,null,{"$f":"IF(AB11=\"\",\"\",1)","v":""},"1-5."]
[null,null,null,null,null,null,null,null,null,null,null,null,null,null,null,null,null,null,null,null,null,null,null,null,null,null,null,null,null,null,null,null,null,null,null,null,null,null,null,null,null,null,null,null,null,null,null,null,null,null,null,null,null,null,null,null,null,null,null,null,null,null,null,null,null,null,null,null,null,null,null,null,null,null,null,null,null,null,null,null,null,null,null,null,null,null,null,null,null,null,null,null,null,null,null,null,null,null,null,null,null,null,null,null,null,null,null,null,null,null,null,null,null,null,null,null,null,null,null,null,null,null,null,null,null,null,null,null,null,null,null,null,null,null,null,null,null,null,null,null,null,null,null,null,null,null,null,null,null,null,null,null,null,null,null,null,null,null,null,null,null,null,null,null,null,null,null,null,null,null,null,null,null,null,null,null,null,null,null,null,null,null,null,null,null,null,null,null,null,null,null,null,null,null,null,null,null,null,null,null,null,null,null,null,null,null,null,null,null,null,null,null,null,null,null,null,null,null,null,null,null,null,null,null,null,null,null,null,null,null,null,null,null,null,null,null,null,null,null,null,null,null,1,"1-6.",null,{"$f":"IF(OR(DD7=\"\"),\"\",1)","v":""},"4-2."]
[null,null,null,null,null,null,null,null,null,null,null,null,null,null,null,null,null,null,null,null,null,null,null,null,null,null,null,null,null,null,null,null,null,null,null,null,null,null,null,null,null,null,null,null,null,null,null,null,null,null,null,null,null,null,null,null,null,null,null,null,null,null,null,null,null,null,null,null,null,null,null,null,null,null,null,null,null,null,null,null,null,null,null,null,null,"売電率を\n含む",null,"売電率を\n含まない",null,null,null,null,null,null,null,null,null,null,null,null,null,null,null,null,null,null,null,null,null,null,null,null,null,null,null,null,null,null,null,null,null,null,null,null,null,null,null,null,null,null,null,null,null,null,null,null,null,null,null,null,null,null,null,null,null,null,null,null,null,null,null,null,null,null,null,null,null,null,null,null,null,null,null,null,null,null,null,null,null,null,null,null,null,null,null,null,null,null,null,null,null,null,null,null,null,null,null,null,null,null,null,null,null,null,null,null,null,null,null,null,null,null,null,null,null,null,null,null,null,null,null,null,null,null,null,null,null,null,null,null,null,null,null,null,null,null,null,null,null,null,null,null,null,null,null,null,null,null,null,null,null,null,1,"1-7.",null,{"$f":"IF(OR(DD8=\"\"),\"\",1)","v":""},"4-3."]
[null,null,null,null,null,null,null,null,null,null,null,null,null,null,null,null,null,null,null,null,null,null,null,null,null,null,null,null,null,null,null,null,null,null,null,null,null,null,null,null,null,null,null,null,null,null,null,null,null,null,null,null,null,null,null,null,null,null,null,null,null,null,null,null,null,null,null,null,null,null,null,null,null,null,null,null,null,null,null,null,null,null,null,null,null,null,null,null,null,null,null,null,null,null,null,null,null,null,null,null,null,null,null,null,null,null,null,null,null,null,null,null,null,null,null,null,null,null,null,null,null,null,null,null,null,"[0a|e]","[0a|e]","[0a|e]","[0a|e]",null,null,null,null,null,null,null,null,"[0a|e]","[0a|e]","[0a|e]","[0a|e]",null,null,null,null,null,null,null,null,null,null,null,null,null,null,null,null,null,null,null,null,null,null,null,null,null,null,null,null,null,null,null,null,null,null,null,null,null,null,null,null,null,null,null,null,null,null,null,null,null,null,null,null,null,null,null,null,null,null,null,null,null,null,null,null,null,null,null,null,null,"[0a|e]","[0a|e]","[0a|e]","[0a|e]",null,null,null,null,null,"[0a|e]","[0a|e]","[0a|e]","[0a|e]"]
[null,null,null,null,null,null,null,null,null,null,null,null,null,null,null,null,null,null,null,null,null,null,null,null,"[1|4]","[0|4]",null,null,null,null,null,null,null,null,null,"[1|3]",null,null,null,null,null,null,null,null,null,"[0|4]","[0|3]",null,null,null,null,null,null,null,null,null,null,null,null,null,null,null,null,null,null,null,null,null,null,null,null,null,"地域区分","[1|4]","地域区分","[1|7]",null,null,null,null,"地域区分",null,null,null,null,null,null,null,null,null,null,null,"[0|3]","[023]",null,null,null,null,null,null,null,null,null,null,null,null,null,null,null,null,null,"％以上","％以上","％以上","％以上","％以上","％以上",null,null,null,null,"[0|5]","[0|5]","[0|5]","[0|5]",null,null,null,null,null,null,null,null,"[0|5]","[0|5]","[0|5]","[0|5]",null,null,null,null,"[0|4]","[0|3]","[0|3]","[0|3]","[0|3]","[1|5]","[0|5]",null,null,null,null,null,null,null,null,null,null,null,null,null,null,null,null,null,null,null,null,null,null,null,null,null,null,null,null,null,null,null,null,null,null,null,null,null,null,null,null,null,null,null,null,null,null,null,null,null,null,null,null,null,null,null,null,null,null,"[0|5]","[0|5]","[0|5]","[0|5]",null,null,null,null,null,"[0|5]","[0|5]","[0|5]","[0|5]"]
[]
[null,null,null,null,null,null,null,null,null,null,null,null,null,null,null,null,null,null,null,null,null,null,null,null,null,null,null,null,null,null,null,null,null,null,null,null,null,null,null,null,null,null,null,null,null,null,null,null,null,null,null,null,null,null,null,null,null,null,null,null,null,null,null,null,null,null,null,null,null,null,null,null,null,null,null,null,"ＵＡ",null,"ηＡ",null,null,null,"MJ/㎡・年"]
[null,null,null,null,null,null,null,null,null,null,null,null,null,null,null,null,null,null,null,null,null,null,null,null,null,null,null,null,null,null,null,null,null,null,null,null,null,null,null,null,null,null,null,null,null,null,null,null,null,null,null,null,null,null,null,null,null,null,null,null,null,null,null,null,null,null,null,null,null,null,null,null,null,null,null,null,null,null,null,null,null,null,null,null,null,"%"]
[{"$f":" ROW(A34) - ROW(_row) + 1","v":0},null,null,{"$f":"IF(B34=\"\",\"\",B34)","v":""},null,null,null,null,null,null,null,null,null,null,null,null,null,null,null,null,null,null,null,null,null,null,null,null,null,null,null,null,null,null,null,null,null,null,null,null,null,null,null,null,null,null,null,null,null,{"$f":"IF(GQ34=1,IF(F34=\"\",\"\",F34),\"\")","v":""},null,null,null,null,null,null,null,null,null,null,null,null,null,null,null,null,null,null,null,null,null,null,null,null,null,null,null,null,null,null,null,null,null,null,null,null,null,null,null,null,null,null,null,null,null,null,null,null,null,null,null,null,null,null,null,null,null,null,null,null,null,null,null,null,null,null,null,null,null,null,null,null,null,null,null,null,null,null,null,null,null,null,null,null,null,null,null,null,null,null,null,null,null,null,null,null,null,null,null,null,{"$f":"IF(F34=\"\",\"\",F34)","v":""},null,null,null,null,null,null,null,null,{"$f":"IF(HU34=\"\",\"\",HU34)","v":""},null,{"$f":"IF(OR(IF(OR(FG34=\"\",FG34=\"無し\"),\"\",1)=1,IF(OR(FI34=\"\",FI34=\"無し\"),\"\",1)=1,IF(OR(FK34=\"\",FK34=\"無し\"),\"\",1)=1,IF(OR(FM34=\"\",FM34=\"無し\"),\"\",1)=1),IF(F34=\"\",\"\",F34),\"\")","v":""},null,null,null,null,null,null,null,null,null,null,{"$f":"IF(OR(IF(OR(FR34=\"\",FR34=\"無し\"),\"\",1)=1,IF(OR(FT34=\"\",FT34=\"無し\"),\"\",1)=1,IF(OR(FV34=\"\",FV34=\"無し\"),\"\",1)=1,IF(OR(FX34=\"\",FX34=\"無し\"),\"\",1)=1),IF(F34=\"\",\"\",F34),\"\")","v":""},null,null,null,null,null,null,null,null,null,null,{"$f":"IF(OR(IF(OR(GC34=\"\",GC34=\"無し\"),\"\",1)=1,IF(OR(GE34=\"\",GE34=\"無し\"),\"\",1)=1,IF(OR(GG34=\"\",GG34=\"無し\"),\"\",1)=1,IF(OR(GI34=\"\",GI34=\"無し\"),\"\",1)=1),IF(F34=\"\",\"\",F34),\"\")","v":""},null,null,null,null,null,null,null,null,{"$f":"IF(Y34<>\"\",1,\"\")","v":""},{"$f":"IF(Z34<>\"\",1,\"\")","v":""},{"$f":"IF(OR(AA34=\"○\",AB34<>\"\",AG34<>\"\",AJ34<>\"\"),1,\"\")","v":""},{"$f":"IF(OR(AK34=\"○\",AL34=\"○\",AM34=\"○\",AN34=\"○\",AQ34=\"○\"),1,\"\")","v":""},{"$f":"IF(AT34<>\"\",1,\"\")","v":""},{"$f":"IF(AU34<>\"\",1,\"\")","v":""},{"$f":"IF(OR(AV34=\"○\",AY34<>\"\",BA34=\"はり\",BA34=\"傾斜屋根\",BA34=\"その他\",BD34<>\"\"),1,\"\")","v":""},1,1,{"$f":"IF(OR(CL34=\"○\",CM34=\"○\",CN34=\"○\",CO34=1,CO34=2,CO34=3,CP34=1,CP34=2,CP34=3),1,\"\")","v":""},{"$f":"IF(OR(CQ34=\"○\",CR34=\"○\",CW34=\"○\",CX34=\"○\",DA34=\"○\",DB34=\"○\",DE34=\"○\",DF34=\"○\"),1,\"\")","v":""},{"$f":"IF(DH34=\"\",\"\",1)","v":""},{"$f":"IF(OR(DI34<>\"\",DJ34<>\"\",DK34<>\"\",DL34<>\"\",DM34<>\"\"),1,\"\")","v":""},{"$f":"IF(OR(GY34=1,GZ34=1,HA34=1,HB34=1,HC34=1,HD34=1,HE34=1,HF34=1),\"○\",\"\")","v":""},{"$f":"IF(OR(DR34=\"\",DR34=0),\"\",1)","v":""},{"$f":"IF(OR(DS34=\"\",DS34=0),\"\",1)","v":""},{"$f":"IF(OR(DT34=\"\",DT34=0),\"\",1)","v":""},{"$f":"IF(OR(DU34=\"\",DU34=0),\"\",1)","v":""},{"$f":"IF(OR(DV34=\"\",DV34=0),\"\",1)","v":""},{"$f":"IF(OR(DW34=\"\",DW34=0),\"\",1)","v":""},{"$f":"IF(OR(DX34=\"\",DX34=0),\"\",1)","v":""},{"$f":"IF(OR(DY34=\"\",DY34=0),\"\",1)","v":""},{"$f":"IF(OR(HH34=1,HI34=1,HJ34=1,HK34=1,HM34=1,HL34=1,HN34=1,HO34=1),\"○\",\"\")","v":""},{"$f":"IF(OR(ED34=\"\",ED34=0),\"\",1)","v":""},{"$f":"IF(OR(EE34=\"\",EE34=0),\"\",1)","v":""},{"$f":"IF(OR(EF34=\"\",EF34=0),\"\",1)","v":""},{"$f":"IF(OR(EG34=\"\",EG34=0),\"\",1)","v":""},{"$f":"IF(OR(EH34=\"\",EH34=0),\"\",1)","v":""},{"$f":"IF(OR(EI34=\"\",EI34=0),\"\",1)","v":""},{"$f":"IF(OR(EJ34=\"\",EJ34=0),\"\",1)","v":""},{"$f":"IF(OR(EK34=\"\",EK34=0),\"\",1)","v":""},{"$f":"IF(OR(EL34=4,EL34=3,EL34=2,EL34=1),\"○\",\"\")","v":""},{"$f":"IF(OR(EM34=1,EM34=2,EM34=3),\"○\",IF(OR(EN34=1,EN34=2,EN34=3),\"○\",IF(OR(EO34=1,EO34=2,EO34=3),\"○\",IF(OR(EP34=1,EP34=2,EP34=3),\"○\",\"\"))))","v":""},{"$f":"IF(EQ34=\"\",\"\",1)","v":""},{"$f":"IF(OR(ER34=\"\"),\"\",1)","v":""},{"$f":"IF(OR(HV34=1,HW34=1,HX34=1,HY34=1),1,\"\")","v":""},{"$f":"IF(AND(FE34=\"\",FF34=\"\",FG34=\"\",FI34=\"\",FK34=\"\",FM34=\"\"),\"\",\"×\")","v":""},{"$f":"IF(AND(OR(EV34=\"\",EV34=\"無し\"),OR(FG34=\"\",FG34=\"無し\")),\"\",1)","v":""},{"$f":"IF(AND(OR(EX34=\"\",EX34=\"無し\"),OR(FI34=\"\",FI34=\"無し\")),\"\",1)","v":""},{"$f":"IF(OR(FK34=\"\",FK34=\"無し\"),\"\",1)","v":""},{"$f":"IF(AND(OR(FB34=\"\",FB34=\"無し\"),OR(FM34=\"\",FM34=\"無し\")),\"\",1)","v":""}]
[1,null,null,{"$f":"IF(B35=\"\",\"\",B35)","v":""},null,null,null,null,null,null,null,null,null,null,null,null,null,null,null,null,null,null,null,null,null,null,null,null,null,null,null,null,null,null,null,null,null,null,null,null,null,null,null,null,null,null,null,null,null,"",null,null,null,null,null,null,null,null,null,null,null,null,null,null,null,null,null,null,null,null,null,null,null,null,null,null,null,null,null,null,null,null,null,null,null,null,null,null,null,null,null,null,null,null,null,null,null,null,null,null,null,null,null,null,null,null,null,null,null,null,null,null,null,null,null,null,null,null,null,null,null,null,null,null,null,null,null,null,null,null,null,null,null,null,null,null,null,null,null,null,null,null,null,null,null,null,null,null,null,null,"",null,null,null,null,null,null,null,null,{"$f":"IF(HU35=\"\",\"\",HU35)","v":""},null,"",null,null,null,null,null,null,null,null,null,null,"",null,null,null,null,null,null,null,null,null,null,"",null,null,null,null,null,null,null,null,"","","","","","","",1,1,{"$f":"IF(OR(CL35=\"○\",CM35=\"○\",CN35=\"○\",CO35=1,CO35=2,CO35=3,CP35=1,CP35=2,CP35=3),1,\"\")","v":""},{"$f":"IF(OR(CQ35=\"○\",CR35=\"○\",CW35=\"○\",CX35=\"○\",DA35=\"○\",DB35=\"○\",DE35=\"○\",DF35=\"○\"),1,\"\")","v":""},{"$f":"IF(DH35=\"\",\"\",1)","v":""},{"$f":"IF(OR(DI35<>\"\",DJ35<>\"\",DK35<>\"\",DL35<>\"\",DM35<>\"\"),1,\"\")","v":""},{"$f":"IF(OR(GY35=1,GZ35=1,HA35=1,HB35=1,HC35=1,HD35=1,HE35=1,HF35=1),\"○\",\"\")","v":""},{"$f":"IF(OR(DR35=\"\",DR35=0),\"\",1)","v":""},"","","","","","","",{"$f":"IF(OR(HH35=1,HI35=1,HJ35=1,HK35=1,HM35=1,HL35=1,HN35=1,HO35=1),\"○\",\"\")","v":""},{"$f":"IF(OR(ED35=\"\",ED35=0),\"\",1)","v":""},{"$f":"IF(OR(EE35=\"\",EE35=0),\"\",1)","v":""},"","","","","","",{"$f":"IF(OR(EL35=4,EL35=3,EL35=2,EL35=1),\"○\",\"\")","v":""},{"$f":"IF(OR(EM35=1,EM35=2,EM35=3),\"○\",IF(OR(EN35=1,EN35=2,EN35=3),\"○\",IF(OR(EO35=1,EO35=2,EO35=3),\"○\",IF(OR(EP35=1,EP35=2,EP35=3),\"○\",\"\"))))","v":""},{"$f":"IF(EQ35=\"\",\"\",1)","v":""},{"$f":"IF(OR(ER35=\"\"),\"\",1)","v":""},{"$f":"IF(OR(HV35=1,HW35=1,HX35=1,HY35=1),1,\"\")","v":""},{"$f":"IF(AND(FE35=\"\",FF35=\"\",FG35=\"\",FI35=\"\",FK35=\"\",FM35=\"\"),\"\",\"×\")","v":""},{"$f":"IF(AND(OR(EV35=\"\",EV35=\"無し\"),OR(FG35=\"\",FG35=\"無し\")),\"\",1)","v":""},{"$f":"IF(AND(OR(EX35=\"\",EX35=\"無し\"),OR(FI35=\"\",FI35=\"無し\")),\"\",1)","v":""},{"$f":"IF(OR(FK35=\"\",FK35=\"無し\"),\"\",1)","v":""},{"$f":"IF(AND(OR(FB35=\"\",FB35=\"無し\"),OR(FM35=\"\",FM35=\"無し\")),\"\",1)","v":""}]
[2,null,null,{"$f":"IF(B36=\"\",\"\",B36)","v":""},null,null,null,null,null,null,null,null,null,null,null,null,null,null,null,null,null,null,null,null,null,null,null,null,null,null,null,null,null,null,null,null,null,null,null,null,null,null,null,null,null,null,null,null,null,"",null,null,null,null,null,null,null,null,null,null,null,null,null,null,null,null,null,null,null,null,null,null,null,null,null,null,null,null,null,null,null,null,null,null,null,null,null,null,null,null,null,null,null,null,null,null,null,null,null,null,null,null,null,null,null,null,null,null,null,null,null,null,null,null,null,null,null,null,null,null,null,null,null,null,null,null,null,null,null,null,null,null,null,null,null,null,null,null,null,null,null,null,null,null,null,null,null,null,null,null,"",null,null,null,null,null,null,null,null,{"$f":"IF(HU36=\"\",\"\",HU36)","v":""},null,"",null,null,null,null,null,null,null,null,null,null,"",null,null,null,null,null,null,null,null,null,null,"",null,null,null,null,null,null,null,null,"","","","","","","",1,1,{"$f":"IF(OR(CL36=\"○\",CM36=\"○\",CN36=\"○\",CO36=1,CO36=2,CO36=3,CP36=1,CP36=2,CP36=3),1,\"\")","v":""},{"$f":"IF(OR(CQ36=\"○\",CR36=\"○\",CW36=\"○\",CX36=\"○\",DA36=\"○\",DB36=\"○\",DE36=\"○\",DF36=\"○\"),1,\"\")","v":""},{"$f":"IF(DH36=\"\",\"\",1)","v":""},{"$f":"IF(OR(DI36<>\"\",DJ36<>\"\",DK36<>\"\",DL36<>\"\",DM36<>\"\"),1,\"\")","v":""},{"$f":"IF(OR(GY36=1,GZ36=1,HA36=1,HB36=1,HC36=1,HD36=1,HE36=1,HF36=1),\"○\",\"\")","v":""},{"$f":"IF(OR(DR36=\"\",DR36=0),\"\",1)","v":""},{"$f":"IF(OR(DS36=\"\",DS36=0),\"\",1)","v":""},{"$f":"IF(OR(DT36=\"\",DT36=0),\"\",1)","v":""},{"$f":"IF(OR(DU36=\"\",DU36=0),\"\",1)","v":""},{"$f":"IF(OR(DV36=\"\",DV36=0),\"\",1)","v":""},{"$f":"IF(OR(DW36=\"\",DW36=0),\"\",1)","v":""},{"$f":"IF(OR(DX36=\"\",DX36=0),\"\",1)","v":""},{"$f":"IF(OR(DY36=\"\",DY36=0),\"\",1)","v":""},{"$f":"IF(OR(HH36=1,HI36=1,HJ36=1,HK36=1,HM36=1,HL36=1,HN36=1,HO36=1),\"○\",\"\")","v":""},{"$f":"IF(OR(ED36=\"\",ED36=0),\"\",1)","v":""},{"$f":"IF(OR(EE36=\"\",EE36=0),\"\",1)","v":""},{"$f":"IF(OR(EF36=\"\",EF36=0),\"\",1)","v":""},{"$f":"IF(OR(EG36=\"\",EG36=0),\"\",1)","v":""},{"$f":"IF(OR(EH36=\"\",EH36=0),\"\",1)","v":""},{"$f":"IF(OR(EI36=\"\",EI36=0),\"\",1)","v":""},{"$f":"IF(OR(EJ36=\"\",EJ36=0),\"\",1)","v":""},{"$f":"IF(OR(EK36=\"\",EK36=0),\"\",1)","v":""},{"$f":"IF(OR(EL36=4,EL36=3,EL36=2,EL36=1),\"○\",\"\")","v":""},{"$f":"IF(OR(EM36=1,EM36=2,EM36=3),\"○\",IF(OR(EN36=1,EN36=2,EN36=3),\"○\",IF(OR(EO36=1,EO36=2,EO36=3),\"○\",IF(OR(EP36=1,EP36=2,EP36=3),\"○\",\"\"))))","v":""},{"$f":"IF(EQ36=\"\",\"\",1)","v":""},{"$f":"IF(OR(ER36=\"\"),\"\",1)","v":""},{"$f":"IF(OR(HV36=1,HW36=1,HX36=1,HY36=1),1,\"\")","v":""},{"$f":"IF(AND(FE36=\"\",FF36=\"\",FG36=\"\",FI36=\"\",FK36=\"\",FM36=\"\"),\"\",\"×\")","v":""},{"$f":"IF(AND(OR(EV36=\"\",EV36=\"無し\"),OR(FG36=\"\",FG36=\"無し\")),\"\",1)","v":""},{"$f":"IF(AND(OR(EX36=\"\",EX36=\"無し\"),OR(FI36=\"\",FI36=\"無し\")),\"\",1)","v":""},{"$f":"IF(OR(FK36=\"\",FK36=\"無し\"),\"\",1)","v":""},{"$f":"IF(AND(OR(FB36=\"\",FB36=\"無し\"),OR(FM36=\"\",FM36=\"無し\")),\"\",1)","v":""}]
[3,null,null,{"$f":"IF(B37=\"\",\"\",B37)","v":""},null,null,null,null,null,null,null,null,null,null,null,null,null,null,null,null,null,null,null,null,null,null,null,null,null,null,null,null,null,null,null,null,null,null,null,null,null,null,null,null,null,null,null,null,null,"",null,null,null,null,null,null,null,null,null,null,null,null,null,null,null,null,null,null,null,null,null,null,null,null,null,null,null,null,null,null,null,null,null,null,null,null,null,null,null,null,null,null,null,null,null,null,null,null,null,null,null,null,null,null,null,null,null,null,null,null,null,null,null,null,null,null,null,null,null,null,null,null,null,null,null,null,null,null,null,null,null,null,null,null,null,null,null,null,null,null,null,null,null,null,null,null,null,null,null,null,"",null,null,null,null,null,null,null,null,"",null,"",null,null,null,null,null,null,null,null,null,null,"",null,null,null,null,null,null,null,null,null,null,"",null,null,null,null,null,null,null,null,"","","","","","","",1,1,{"$f":"IF(OR(CL37=\"○\",CM37=\"○\",CN37=\"○\",CO37=1,CO37=2,CO37=3,CP37=1,CP37=2,CP37=3),1,\"\")","v":""},"","","","","","","","","","","","","","","","","","","","","","","","","","","","","","",""]
[4,null,null,"",null,null,null,null,null,null,null,null,null,null,null,null,null,null,null,null,null,null,null,null,null,null,null,null,null,null,null,null,null,null,null,null,null,null,null,null,null,null,null,null,null,null,null,null,null,"",null,null,null,null,null,null,null,null,null,null,null,null,null,null,null,null,null,null,null,null,null,null,null,null,null,null,null,null,null,null,null,null,null,null,null,null,null,null,null,null,null,null,null,null,null,null,null,null,null,null,null,null,null,null,null,null,null,null,null,null,null,null,null,null,null,null,null,null,null,null,null,null,null,null,null,null,null,null,null,null,null,null,null,null,null,null,null,null,null,null,null,null,null,null,null,null,null,null,null,null,"",null,null,null,null,null,null,null,null,"",null,"",null,null,null,null,null,null,null,null,null,null,"",null,null,null,null,null,null,null,null,null,null,"",null,null,null,null,null,null,null,null,"","","","","","","",1,1,"","","","","","","","","","","","","","","","","","","","","","","","","","","","","","","",""]
[5,null,null,"",null,null,null,null,null,null,null,null,null,null,null,null,null,null,null,null,null,null,null,null,null,null,null,null,null,null,null,null,null,null,null,null,null,null,null,null,null,null,null,null,null,null,null,null,null,"",null,null,null,null,null,null,null,null,null,null,null,null,null,null,null,null,null,null,null,null,null,null,null,null,null,null,null,null,null,null,null,null,null,null,null,null,null,null,null,null,null,null,null,null,null,null,null,null,null,null,null,null,null,null,null,null,null,null,null,null,null,null,null,null,null,null,null,null,null,null,null,null,null,null,null,null,null,null,null,null,null,null,null,null,null,null,null,null,null,null,null,null,null,null,null,null,null,null,null,null,"",null,null,null,null,null,null,null,null,"",null,"",null,null,null,null,null,null,null,null,null,null,"",null,null,null,null,null,null,null,null,null,null,"",null,null,null,null,null,null,null,null,"","","","","","","",1,1,"","","","","","","","","","","","","","","","","","","","","","","","","","","","","","","",""]
[6,null,null,"",null,null,null,null,null,null,null,null,null,null,null,null,null,null,null,null,null,null,null,null,null,null,null,null,null,null,null,null,null,null,null,null,null,null,null,null,null,null,null,null,null,null,null,null,null,"",null,null,null,null,null,null,null,null,null,null,null,null,null,null,null,null,null,null,null,null,null,null,null,null,null,null,null,null,null,null,null,null,null,null,null,null,null,null,null,null,null,null,null,null,null,null,null,null,null,null,null,null,null,null,null,null,null,null,null,null,null,null,null,null,null,null,null,null,null,null,null,null,null,null,null,null,null,null,null,null,null,null,null,null,null,null,null,null,null,null,null,null,null,null,null,null,null,null,null,null,"",null,null,null,null,null,null,null,null,"",null,"",null,null,null,null,null,null,null,null,null,null,"",null,null,null,null,null,null,null,null,null,null,"",null,null,null,null,null,null,null,null,"","","","","","","",1,1,"","","","","","","","","","","","","","","","","","","","","","","","","","","","","","","",""]
[7,null,null,"",null,null,null,null,null,null,null,null,null,null,null,null,null,null,null,null,null,null,null,null,null,null,null,null,null,null,null,null,null,null,null,null,null,null,null,null,null,null,null,null,null,null,null,null,null,"",null,null,null,null,null,null,null,null,null,null,null,null,null,null,null,null,null,null,null,null,null,null,null,null,null,null,null,null,null,null,null,null,null,null,null,null,null,null,null,null,null,null,null,null,null,null,null,null,null,null,null,null,null,null,null,null,null,null,null,null,null,null,null,null,null,null,null,null,null,null,null,null,null,null,null,null,null,null,null,null,null,null,null,null,null,null,null,null,null,null,null,null,null,null,null,null,null,null,null,null,"",null,null,null,null,null,null,null,null,"",null,"",null,null,null,null,null,null,null,null,null,null,"",null,null,null,null,null,null,null,null,null,null,"",null,null,null,null,null,null,null,null,"","","","","","","",1,1,"","","","","","","","","","","","","","","","","","","","","","","","","","","","","","","",""]
[8,null,null,"",null,null,null,null,null,null,null,null,null,null,null,null,null,null,null,null,null,null,null,null,null,null,null,null,null,null,null,null,null,null,null,null,null,null,null,null,null,null,null,null,null,null,null,null,null,"",null,null,null,null,null,null,null,null,null,null,null,null,null,null,null,null,null,null,null,null,null,null,null,null,null,null,null,null,null,null,null,null,null,null,null,null,null,null,null,null,null,null,null,null,null,null,null,null,null,null,null,null,null,null,null,null,null,null,null,null,null,null,null,null,null,null,null,null,null,null,null,null,null,null,null,null,null,null,null,null,null,null,null,null,null,null,null,null,null,null,null,null,null,null,null,null,null,null,null,null,"",null,null,null,null,null,null,null,null,"",null,"",null,null,null,null,null,null,null,null,null,null,"",null,null,null,null,null,null,null,null,null,null,"",null,null,null,null,null,null,null,null,"","","","","","","",1,1,"","","","","","","","","","","","","","","","","","","","","","","","","","","","","","","",""]
[9,null,null,"",null,null,null,null,null,null,null,null,null,null,null,null,null,null,null,null,null,null,null,null,null,null,null,null,null,null,null,null,null,null,null,null,null,null,null,null,null,null,null,null,null,null,null,null,null,"",null,null,null,null,null,null,null,null,null,null,null,null,null,null,null,null,null,null,null,null,null,null,null,null,null,null,null,null,null,null,null,null,null,null,null,null,null,null,null,null,null,null,null,null,null,null,null,null,null,null,null,null,null,null,null,null,null,null,null,null,null,null,null,null,null,null,null,null,null,null,null,null,null,null,null,null,null,null,null,null,null,null,null,null,null,null,null,null,null,null,null,null,null,null,null,null,null,null,null,null,"",null,null,null,null,null,null,null,null,"",null,"",null,null,null,null,null,null,null,null,null,null,"",null,null,null,null,null,null,null,null,null,null,"",null,null,null,null,null,null,null,null,"","","","","","","",1,1,"","","","","","","","","","","","","","","","","","","","","","","","","","","","","","","",""]
[10,null,null,"",null,null,null,null,null,null,null,null,null,null,null,null,null,null,null,null,null,null,null,null,null,null,null,null,null,null,null,null,null,null,null,null,null,null,null,null,null,null,null,null,null,null,null,null,null,"",null,null,null,null,null,null,null,null,null,null,null,null,null,null,null,null,null,null,null,null,null,null,null,null,null,null,null,null,null,null,null,null,null,null,null,null,null,null,null,null,null,null,null,null,null,null,null,null,null,null,null,null,null,null,null,null,null,null,null,null,null,null,null,null,null,null,null,null,null,null,null,null,null,null,null,null,null,null,null,null,null,null,null,null,null,null,null,null,null,null,null,null,null,null,null,null,null,null,null,null,"",null,null,null,null,null,null,null,null,"",null,"",null,null,null,null,null,null,null,null,null,null,"",null,null,null,null,null,null,null,null,null,null,"",null,null,null,null,null,null,null,null,"","","","","","","",1,1,"","","","","","","","","","","","","","","","","","","","","","","","","","","","","","","",""]
[11,null,null,"",null,null,null,null,null,null,null,null,null,null,null,null,null,null,null,null,null,null,null,null,null,null,null,null,null,null,null,null,null,null,null,null,null,null,null,null,null,null,null,null,null,null,null,null,null,"",null,null,null,null,null,null,null,null,null,null,null,null,null,null,null,null,null,null,null,null,null,null,null,null,null,null,null,null,null,null,null,null,null,null,null,null,null,null,null,null,null,null,null,null,null,null,null,null,null,null,null,null,null,null,null,null,null,null,null,null,null,null,null,null,null,null,null,null,null,null,null,null,null,null,null,null,null,null,null,null,null,null,null,null,null,null,null,null,null,null,null,null,null,null,null,null,null,null,null,null,"",null,null,null,null,null,null,null,null,"",null,"",null,null,null,null,null,null,null,null,null,null,"",null,null,null,null,null,null,null,null,null,null,"",null,null,null,null,null,null,null,null,"","","","","","","",1,1,"","","","","","","","","","","","","","","","","","","","","","","","","","","","","","","",""]
[12,null,null,"",null,null,null,null,null,null,null,null,null,null,null,null,null,null,null,null,null,null,null,null,null,null,null,null,null,null,null,null,null,null,null,null,null,null,null,null,null,null,null,null,null,null,null,null,null,"",null,null,null,null,null,null,null,null,null,null,null,null,null,null,null,null,null,null,null,null,null,null,null,null,null,null,null,null,null,null,null,null,null,null,null,null,null,null,null,null,null,null,null,null,null,null,null,null,null,null,null,null,null,null,null,null,null,null,null,null,null,null,null,null,null,null,null,null,null,null,null,null,null,null,null,null,null,null,null,null,null,null,null,null,null,null,null,null,null,null,null,null,null,null,null,null,null,null,null,null,"",null,null,null,null,null,null,null,null,"",null,"",null,null,null,null,null,null,null,null,null,null,"",null,null,null,null,null,null,null,null,null,null,"",null,null,null,null,null,null,null,null,"","","","","","","",1,1,"","","","","","","","","","","","","","","","","","","","","","","","","","","","","","","",""]
[13,null,null,"",null,null,null,null,null,null,null,null,null,null,null,null,null,null,null,null,null,null,null,null,null,null,null,null,null,null,null,null,null,null,null,null,null,null,null,null,null,null,null,null,null,null,null,null,null,"",null,null,null,null,null,null,null,null,null,null,null,null,null,null,null,null,null,null,null,null,null,null,null,null,null,null,null,null,null,null,null,null,null,null,null,null,null,null,null,null,null,null,null,null,null,null,null,null,null,null,null,null,null,null,null,null,null,null,null,null,null,null,null,null,null,null,null,null,null,null,null,null,null,null,null,null,null,null,null,null,null,null,null,null,null,null,null,null,null,null,null,null,null,null,null,null,null,null,null,null,"",null,null,null,null,null,null,null,null,"",null,"",null,null,null,null,null,null,null,null,null,null,"",null,null,null,null,null,null,null,null,null,null,"",null,null,null,null,null,null,null,null,"","","","","","","",1,1,"","","","","","","","","","","","","","","","","","","","","","","","","","","","","","","",""]
[14,null,null,"",null,null,null,null,null,null,null,null,null,null,null,null,null,null,null,null,null,null,null,null,null,null,null,null,null,null,null,null,null,null,null,null,null,null,null,null,null,null,null,null,null,null,null,null,null,"",null,null,null,null,null,null,null,null,null,null,null,null,null,null,null,null,null,null,null,null,null,null,null,null,null,null,null,null,null,null,null,null,null,null,null,null,null,null,null,null,null,null,null,null,null,null,null,null,null,null,null,null,null,null,null,null,null,null,null,null,null,null,null,null,null,null,null,null,null,null,null,null,null,null,null,null,null,null,null,null,null,null,null,null,null,null,null,null,null,null,null,null,null,null,null,null,null,null,null,null,"",null,null,null,null,null,null,null,null,"",null,"",null,null,null,null,null,null,null,null,null,null,"",null,null,null,null,null,null,null,null,null,null,"",null,null,null,null,null,null,null,null,"","","","","","","",1,1,"","","","","","","","","","","","","","","","","","","","","","","","","","","","","","","",""]
[15,null,null,"",null,null,null,null,null,null,null,null,null,null,null,null,null,null,null,null,null,null,null,null,null,null,null,null,null,null,null,null,null,null,null,null,null,null,null,null,null,null,null,null,null,null,null,null,null,"",null,null,null,null,null,null,null,null,null,null,null,null,null,null,null,null,null,null,null,null,null,null,null,null,null,null,null,null,null,null,null,null,null,null,null,null,null,null,null,null,null,null,null,null,null,null,null,null,null,null,null,null,null,null,null,null,null,null,null,null,null,null,null,null,null,null,null,null,null,null,null,null,null,null,null,null,null,null,null,null,null,null,null,null,null,null,null,null,null,null,null,null,null,null,null,null,null,null,null,null,"",null,null,null,null,null,null,null,null,"",null,"",null,null,null,null,null,null,null,null,null,null,"",null,null,null,null,null,null,null,null,null,null,"",null,null,null,null,null,null,null,null,"","","","","","","",1,1,"","","","","","","","","","","","","","","","","","","","","","","","","","","","","","","",""]
[16,null,null,"",null,null,null,null,null,null,null,null,null,null,null,null,null,null,null,null,null,null,null,null,null,null,null,null,null,null,null,null,null,null,null,null,null,null,null,null,null,null,null,null,null,null,null,null,null,"",null,null,null,null,null,null,null,null,null,null,null,null,null,null,null,null,null,null,null,null,null,null,null,null,null,null,null,null,null,null,null,null,null,null,null,null,null,null,null,null,null,null,null,null,null,null,null,null,null,null,null,null,null,null,null,null,null,null,null,null,null,null,null,null,null,null,null,null,null,null,null,null,null,null,null,null,null,null,null,null,null,null,null,null,null,null,null,null,null,null,null,null,null,null,null,null,null,null,null,null,"",null,null,null,null,null,null,null,null,"",null,"",null,null,null,null,null,null,null,null,null,null,"",null,null,null,null,null,null,null,null,null,null,"",null,null,null,null,null,null,null,null,"","","","","","","",1,1,"","","","","","","","","","","","","","","","","","","","","","","","","","","","","","","",""]
[17,null,null,"",null,null,null,null,null,null,null,null,null,null,null,null,null,null,null,null,null,null,null,null,null,null,null,null,null,null,null,null,null,null,null,null,null,null,null,null,null,null,null,null,null,null,null,null,null,"",null,null,null,null,null,null,null,null,null,null,null,null,null,null,null,null,null,null,null,null,null,null,null,null,null,null,null,null,null,null,null,null,null,null,null,null,null,null,null,null,null,null,null,null,null,null,null,null,null,null,null,null,null,null,null,null,null,null,null,null,null,null,null,null,null,null,null,null,null,null,null,null,null,null,null,null,null,null,null,null,null,null,null,null,null,null,null,null,null,null,null,null,null,null,null,null,null,null,null,null,"",null,null,null,null,null,null,null,null,"",null,"",null,null,null,null,null,null,null,null,null,null,"",null,null,null,null,null,null,null,null,null,null,"",null,null,null,null,null,null,null,null,"","","","","","","",1,1,"","","","","","","","","","","","","","","","","","","","","","","","","","","","","","","",""]
[18,null,null,"",null,null,null,null,null,null,null,null,null,null,null,null,null,null,null,null,null,null,null,null,null,null,null,null,null,null,null,null,null,null,null,null,null,null,null,null,null,null,null,null,null,null,null,null,null,"",null,null,null,null,null,null,null,null,null,null,null,null,null,null,null,null,null,null,null,null,null,null,null,null,null,null,null,null,null,null,null,null,null,null,null,null,null,null,null,null,null,null,null,null,null,null,null,null,null,null,null,null,null,null,null,null,null,null,null,null,null,null,null,null,null,null,null,null,null,null,null,null,null,null,null,null,null,null,null,null,null,null,null,null,null,null,null,null,null,null,null,null,null,null,null,null,null,null,null,null,"",null,null,null,null,null,null,null,null,"",null,"",null,null,null,null,null,null,null,null,null,null,"",null,null,null,null,null,null,null,null,null,null,"",null,null,null,null,null,null,null,null,"","","","","","","",1,1,"","","","","","","","","","","","","","","","","","","","","","","","","","","","","","","",""]
[19,null,null,"",null,null,null,null,null,null,null,null,null,null,null,null,null,null,null,null,null,null,null,null,null,null,null,null,null,null,null,null,null,null,null,null,null,null,null,null,null,null,null,null,null,null,null,null,null,"",null,null,null,null,null,null,null,null,null,null,null,null,null,null,null,null,null,null,null,null,null,null,null,null,null,null,null,null,null,null,null,null,null,null,null,null,null,null,null,null,null,null,null,null,null,null,null,null,null,null,null,null,null,null,null,null,null,null,null,null,null,null,null,null,null,null,null,null,null,null,null,null,null,null,null,null,null,null,null,null,null,null,null,null,null,null,null,null,null,null,null,null,null,null,null,null,null,null,null,null,"",null,null,null,null,null,null,null,null,"",null,"",null,null,null,null,null,null,null,null,null,null,"",null,null,null,null,null,null,null,null,null,null,"",null,null,null,null,null,null,null,null,"","","","","","","",1,1,"","","","","","","","","","","","","","","","","","","","","","","","","","","","","","","",""]
[20,null,null,"",null,null,null,null,null,null,null,null,null,null,null,null,null,null,null,null,null,null,null,null,null,null,null,null,null,null,null,null,null,null,null,null,null,null,null,null,null,null,null,null,null,null,null,null,null,"",null,null,null,null,null,null,null,null,null,null,null,null,null,null,null,null,null,null,null,null,null,null,null,null,null,null,null,null,null,null,null,null,null,null,null,null,null,null,null,null,null,null,null,null,null,null,null,null,null,null,null,null,null,null,null,null,null,null,null,null,null,null,null,null,null,null,null,null,null,null,null,null,null,null,null,null,null,null,null,null,null,null,null,null,null,null,null,null,null,null,null,null,null,null,null,null,null,null,null,null,"",null,null,null,null,null,null,null,null,"",null,"",null,null,null,null,null,null,null,null,null,null,"",null,null,null,null,null,null,null,null,null,null,"",null,null,null,null,null,null,null,null,"","","","","","","",1,1,"","","","","","","","","","","","","","","","","","","","","","","","","","","","","","","",""]
[21,null,null,"",null,null,null,null,null,null,null,null,null,null,null,null,null,null,null,null,null,null,null,null,null,null,null,null,null,null,null,null,null,null,null,null,null,null,null,null,null,null,null,null,null,null,null,null,null,"",null,null,null,null,null,null,null,null,null,null,null,null,null,null,null,null,null,null,null,null,null,null,null,null,null,null,null,null,null,null,null,null,null,null,null,null,null,null,null,null,null,null,null,null,null,null,null,null,null,null,null,null,null,null,null,null,null,null,null,null,null,null,null,null,null,null,null,null,null,null,null,null,null,null,null,null,null,null,null,null,null,null,null,null,null,null,null,null,null,null,null,null,null,null,null,null,null,null,null,null,"",null,null,null,null,null,null,null,null,"",null,"",null,null,null,null,null,null,null,null,null,null,"",null,null,null,null,null,null,null,null,null,null,"",null,null,null,null,null,null,null,null,"","","","","","","",1,1,"","","","","","","","","","","","","","","","","","","","","","","","","","","","","","","",""]
[22,null,null,"",null,null,null,null,null,null,null,null,null,null,null,null,null,null,null,null,null,null,null,null,null,null,null,null,null,null,null,null,null,null,null,null,null,null,null,null,null,null,null,null,null,null,null,null,null,"",null,null,null,null,null,null,null,null,null,null,null,null,null,null,null,null,null,null,null,null,null,null,null,null,null,null,null,null,null,null,null,null,null,null,null,null,null,null,null,null,null,null,null,null,null,null,null,null,null,null,null,null,null,null,null,null,null,null,null,null,null,null,null,null,null,null,null,null,null,null,null,null,null,null,null,null,null,null,null,null,null,null,null,null,null,null,null,null,null,null,null,null,null,null,null,null,null,null,null,null,"",null,null,null,null,null,null,null,null,"",null,"",null,null,null,null,null,null,null,null,null,null,"",null,null,null,null,null,null,null,null,null,null,"",null,null,null,null,null,null,null,null,"","","","","","","",1,1,"","","","","","","","","","","","","","","","","","","","","","","","","","","","","","","",""]
[23,null,null,"",null,null,null,null,null,null,null,null,null,null,null,null,null,null,null,null,null,null,null,null,null,null,null,null,null,null,null,null,null,null,null,null,null,null,null,null,null,null,null,null,null,null,null,null,null,"",null,null,null,null,null,null,null,null,null,null,null,null,null,null,null,null,null,null,null,null,null,null,null,null,null,null,null,null,null,null,null,null,null,null,null,null,null,null,null,null,null,null,null,null,null,null,null,null,null,null,null,null,null,null,null,null,null,null,null,null,null,null,null,null,null,null,null,null,null,null,null,null,null,null,null,null,null,null,null,null,null,null,null,null,null,null,null,null,null,null,null,null,null,null,null,null,null,null,null,null,"",null,null,null,null,null,null,null,null,"",null,"",null,null,null,null,null,null,null,null,null,null,"",null,null,null,null,null,null,null,null,null,null,"",null,null,null,null,null,null,null,null,"","","","","","","",1,1,"","","","","","","","","","","","","","","","","","","","","","","","","","","","","","","",""]
[24,null,null,"",null,null,null,null,null,null,null,null,null,null,null,null,null,null,null,null,null,null,null,null,null,null,null,null,null,null,null,null,null,null,null,null,null,null,null,null,null,null,null,null,null,null,null,null,null,"",null,null,null,null,null,null,null,null,null,null,null,null,null,null,null,null,null,null,null,null,null,null,null,null,null,null,null,null,null,null,null,null,null,null,null,null,null,null,null,null,null,null,null,null,null,null,null,null,null,null,null,null,null,null,null,null,null,null,null,null,null,null,null,null,null,null,null,null,null,null,null,null,null,null,null,null,null,null,null,null,null,null,null,null,null,null,null,null,null,null,null,null,null,null,null,null,null,null,null,null,"",null,null,null,null,null,null,null,null,"",null,"",null,null,null,null,null,null,null,null,null,null,"",null,null,null,null,null,null,null,null,null,null,"",null,null,null,null,null,null,null,null,"","","","","","","",1,1,"","","","","","","","","","","","","","","","","","","","","","","","","","","","","","","",""]
[25,null,null,"",null,null,null,null,null,null,null,null,null,null,null,null,null,null,null,null,null,null,null,null,null,null,null,null,null,null,null,null,null,null,null,null,null,null,null,null,null,null,null,null,null,null,null,null,null,"",null,null,null,null,null,null,null,null,null,null,null,null,null,null,null,null,null,null,null,null,null,null,null,null,null,null,null,null,null,null,null,null,null,null,null,null,null,null,null,null,null,null,null,null,null,null,null,null,null,null,null,null,null,null,null,null,null,null,null,null,null,null,null,null,null,null,null,null,null,null,null,null,null,null,null,null,null,null,null,null,null,null,null,null,null,null,null,null,null,null,null,null,null,null,null,null,null,null,null,null,"",null,null,null,null,null,null,null,null,"",null,"",null,null,null,null,null,null,null,null,null,null,"",null,null,null,null,null,null,null,null,null,null,"",null,null,null,null,null,null,null,null,"","","","","","","",1,1,"","","","","","","","","","","","","","","","","","","","","","","","","","","","","","","",""]
[26,null,null,"",null,null,null,null,null,null,null,null,null,null,null,null,null,null,null,null,null,null,null,null,null,null,null,null,null,null,null,null,null,null,null,null,null,null,null,null,null,null,null,null,null,null,null,null,null,"",null,null,null,null,null,null,null,null,null,null,null,null,null,null,null,null,null,null,null,null,null,null,null,null,null,null,null,null,null,null,null,null,null,null,null,null,null,null,null,null,null,null,null,null,null,null,null,null,null,null,null,null,null,null,null,null,null,null,null,null,null,null,null,null,null,null,null,null,null,null,null,null,null,null,null,null,null,null,null,null,null,null,null,null,null,null,null,null,null,null,null,null,null,null,null,null,null,null,null,null,"",null,null,null,null,null,null,null,null,"",null,"",null,null,null,null,null,null,null,null,null,null,"",null,null,null,null,null,null,null,null,null,null,"",null,null,null,null,null,null,null,null,"","","","","","","",1,1,"","","","","","","","","","","","","","","","","","","","","","","","","","","","","","","",""]
[27,null,null,"",null,null,null,null,null,null,null,null,null,null,null,null,null,null,null,null,null,null,null,null,null,null,null,null,null,null,null,null,null,null,null,null,null,null,null,null,null,null,null,null,null,null,null,null,null,"",null,null,null,null,null,null,null,null,null,null,null,null,null,null,null,null,null,null,null,null,null,null,null,null,null,null,null,null,null,null,null,null,null,null,null,null,null,null,null,null,null,null,null,null,null,null,null,null,null,null,null,null,null,null,null,null,null,null,null,null,null,null,null,null,null,null,null,null,null,null,null,null,null,null,null,null,null,null,null,null,null,null,null,null,null,null,null,null,null,null,null,null,null,null,null,null,null,null,null,null,"",null,null,null,null,null,null,null,null,"",null,"",null,null,null,null,null,null,null,null,null,null,"",null,null,null,null,null,null,null,null,null,null,"",null,null,null,null,null,null,null,null,"","","","","","","",1,1,"","","","","","","","","","","","","","","","","","","","","","","","","","","","","","","",""]
[28,null,null,"",null,null,null,null,null,null,null,null,null,null,null,null,null,null,null,null,null,null,null,null,null,null,null,null,null,null,null,null,null,null,null,null,null,null,null,null,null,null,null,null,null,null,null,null,null,"",null,null,null,null,null,null,null,null,null,null,null,null,null,null,null,null,null,null,null,null,null,null,null,null,null,null,null,null,null,null,null,null,null,null,null,null,null,null,null,null,null,null,null,null,null,null,null,null,null,null,null,null,null,null,null,null,null,null,null,null,null,null,null,null,null,null,null,null,null,null,null,null,null,null,null,null,null,null,null,null,null,null,null,null,null,null,null,null,null,null,null,null,null,null,null,null,null,null,null,null,"",null,null,null,null,null,null,null,null,"",null,"",null,null,null,null,null,null,null,null,null,null,"",null,null,null,null,null,null,null,null,null,null,"",null,null,null,null,null,null,null,null,"","","","","","","",1,1,"","","","","","","","","","","","","","","","","","","","","","","","","","","","","","","",""]
[29,null,null,"",null,null,null,null,null,null,null,null,null,null,null,null,null,null,null,null,null,null,null,null,null,null,null,null,null,null,null,null,null,null,null,null,null,null,null,null,null,null,null,null,null,null,null,null,null,"",null,null,null,null,null,null,null,null,null,null,null,null,null,null,null,null,null,null,null,null,null,null,null,null,null,null,null,null,null,null,null,null,null,null,null,null,null,null,null,null,null,null,null,null,null,null,null,null,null,null,null,null,null,null,null,null,null,null,null,null,null,null,null,null,null,null,null,null,null,null,null,null,null,null,null,null,null,null,null,null,null,null,null,null,null,null,null,null,null,null,null,null,null,null,null,null,null,null,null,null,"",null,null,null,null,null,null,null,null,"",null,"",null,null,null,null,null,null,null,null,null,null,"",null,null,null,null,null,null,null,null,null,null,"",null,null,null,null,null,null,null,null,"","","","","","","",1,1,"","","","","","","","","","","","","","","","","","","","","","","","","","","","","","","",""]
[30,null,null,"",null,null,null,null,null,null,null,null,null,null,null,null,null,null,null,null,null,null,null,null,null,null,null,null,null,null,null,null,null,null,null,null,null,null,null,null,null,null,null,null,null,null,null,null,null,"",null,null,null,null,null,null,null,null,null,null,null,null,null,null,null,null,null,null,null,null,null,null,null,null,null,null,null,null,null,null,null,null,null,null,null,null,null,null,null,null,null,null,null,null,null,null,null,null,null,null,null,null,null,null,null,null,null,null,null,null,null,null,null,null,null,null,null,null,null,null,null,null,null,null,null,null,null,null,null,null,null,null,null,null,null,null,null,null,null,null,null,null,null,null,null,null,null,null,null,null,"",null,null,null,null,null,null,null,null,"",null,"",null,null,null,null,null,null,null,null,null,null,"",null,null,null,null,null,null,null,null,null,null,"",null,null,null,null,null,null,null,null,"","","","","","","",1,1,"","","","","","","","","","","","","","","","","","","","","","","","","","","","","","","",""]
[31,null,null,"",null,null,null,null,null,null,null,null,null,null,null,null,null,null,null,null,null,null,null,null,null,null,null,null,null,null,null,null,null,null,null,null,null,null,null,null,null,null,null,null,null,null,null,null,null,"",null,null,null,null,null,null,null,null,null,null,null,null,null,null,null,null,null,null,null,null,null,null,null,null,null,null,null,null,null,null,null,null,null,null,null,null,null,null,null,null,null,null,null,null,null,null,null,null,null,null,null,null,null,null,null,null,null,null,null,null,null,null,null,null,null,null,null,null,null,null,null,null,null,null,null,null,null,null,null,null,null,null,null,null,null,null,null,null,null,null,null,null,null,null,null,null,null,null,null,null,"",null,null,null,null,null,null,null,null,"",null,"",null,null,null,null,null,null,null,null,null,null,"",null,null,null,null,null,null,null,null,null,null,"",null,null,null,null,null,null,null,null,"","","","","","","",1,1,"","","","","","","","","","","","","","","","","","","","","","","","","","","","","","","",""]
[32,null,null,"",null,null,null,null,null,null,null,null,null,null,null,null,null,null,null,null,null,null,null,null,null,null,null,null,null,null,null,null,null,null,null,null,null,null,null,null,null,null,null,null,null,null,null,null,null,{"$f":"IF(GQ66=1,IF(F66=\"\",\"\",F66),\"\")","v":""},null,null,null,null,null,null,null,null,null,null,null,null,null,null,null,null,null,null,null,null,null,null,null,null,null,null,null,null,null,null,null,null,null,null,null,null,null,null,null,null,null,null,null,null,null,null,null,null,null,null,null,null,null,null,null,null,null,null,null,null,null,null,null,null,null,null,null,null,null,null,null,null,null,null,null,null,null,null,null,null,null,null,null,null,null,null,null,null,null,null,null,null,null,null,null,null,null,null,null,null,{"$f":"IF(F66=\"\",\"\",F66)","v":""},null,null,null,null,null,null,null,null,"",null,{"$f":"IF(OR(IF(OR(FG66=\"\",FG66=\"無し\"),\"\",1)=1,IF(OR(FI66=\"\",FI66=\"無し\"),\"\",1)=1,IF(OR(FK66=\"\",FK66=\"無し\"),\"\",1)=1,IF(OR(FM66=\"\",FM66=\"無し\"),\"\",1)=1),IF(F66=\"\",\"\",F66),\"\")","v":""},null,null,null,null,null,null,null,null,null,null,{"$f":"IF(OR(IF(OR(FR66=\"\",FR66=\"無し\"),\"\",1)=1,IF(OR(FT66=\"\",FT66=\"無し\"),\"\",1)=1,IF(OR(FV66=\"\",FV66=\"無し\"),\"\",1)=1,IF(OR(FX66=\"\",FX66=\"無し\"),\"\",1)=1),IF(F66=\"\",\"\",F66),\"\")","v":""},null,null,null,null,null,null,null,null,null,null,{"$f":"IF(OR(IF(OR(GC66=\"\",GC66=\"無し\"),\"\",1)=1,IF(OR(GE66=\"\",GE66=\"無し\"),\"\",1)=1,IF(OR(GG66=\"\",GG66=\"無し\"),\"\",1)=1,IF(OR(GI66=\"\",GI66=\"無し\"),\"\",1)=1),IF(F66=\"\",\"\",F66),\"\")","v":""},null,null,null,null,null,null,null,null,{"$f":"IF(Y66<>\"\",1,\"\")","v":""},{"$f":"IF(Z66<>\"\",1,\"\")","v":""},{"$f":"IF(OR(AA66=\"○\",AB66<>\"\",AG66<>\"\",AJ66<>\"\"),1,\"\")","v":""},{"$f":"IF(OR(AK66=\"○\",AL66=\"○\",AM66=\"○\",AN66=\"○\",AQ66=\"○\"),1,\"\")","v":""},{"$f":"IF(AT66<>\"\",1,\"\")","v":""},{"$f":"IF(AU66<>\"\",1,\"\")","v":""},{"$f":"IF(OR(AV66=\"○\",AY66<>\"\",BA66=\"はり\",BA66=\"傾斜屋根\",BA66=\"その他\",BD66<>\"\"),1,\"\")","v":""},1,1,"","","","","","","","","","","","","","","","","","","","","","","","","","","","","","","",""]
[33,null,null,"",null,null,null,null,null,null,null,null,null,null,null,null,null,null,null,null,null,null,null,null,null,null,null,null,null,null,null,null,null,null,null,null,null,null,null,null,null,null,null,null,null,null,null,null,null,"",null,null,null,null,null,null,null,null,null,null,null,null,null,null,null,null,null,null,null,null,null,null,null,null,null,null,null,null,null,null,null,null,null,null,null,null,null,null,null,null,null,null,null,null,null,null,null,null,null,null,null,null,null,null,null,null,null,null,null,null,null,null,null,null,null,null,null,null,null,null,null,null,null,null,null,null,null,null,null,null,null,null,null,null,null,null,null,null,null,null,null,null,null,null,null,null,null,null,null,null,"",null,null,null,null,null,null,null,null,"",null,"",null,null,null,null,null,null,null,null,null,null,"",null,null,null,null,null,null,null,null,null,null,"",null,null,null,null,null,null,null,null,"","","","","","","",1,1,"","","","","","","","","","","","","","","","","","","","","","","","","","","","","","","",""]
[34,null,null,"",null,null,null,null,null,null,null,null,null,null,null,null,null,null,null,null,null,null,null,null,null,null,null,null,null,null,null,null,null,null,null,null,null,null,null,null,null,null,null,null,null,null,null,null,null,"",null,null,null,null,null,null,null,null,null,null,null,null,null,null,null,null,null,null,null,null,null,null,null,null,null,null,null,null,null,null,null,null,null,null,null,null,null,null,null,null,null,null,null,null,null,null,null,null,null,null,null,null,null,null,null,null,null,null,null,null,null,null,null,null,null,null,null,null,null,null,null,null,null,null,null,null,null,null,null,null,null,null,null,null,null,null,null,null,null,null,null,null,null,null,null,null,null,null,null,null,"",null,null,null,null,null,null,null,null,"",null,"",null,null,null,null,null,null,null,null,null,null,"",null,null,null,null,null,null,null,null,null,null,"",null,null,null,null,null,null,null,null,"","","","","","","",1,1,"","","","","","","","","","","","","","","","","","","","","","","","","","","","","","","",""]
[35,null,null,"",null,null,null,null,null,null,null,null,null,null,null,null,null,null,null,null,null,null,null,null,null,null,null,null,null,null,null,null,null,null,null,null,null,null,null,null,null,null,null,null,null,null,null,null,null,"",null,null,null,null,null,null,null,null,null,null,null,null,null,null,null,null,null,null,null,null,null,null,null,null,null,null,null,null,null,null,null,null,null,null,null,null,null,null,null,null,null,null,null,null,null,null,null,null,null,null,null,null,null,null,null,null,null,null,null,null,null,null,null,null,null,null,null,null,null,null,null,null,null,null,null,null,null,null,null,null,null,null,null,null,null,null,null,null,null,null,null,null,null,null,null,null,null,null,null,null,"",null,null,null,null,null,null,null,null,"",null,"",null,null,null,null,null,null,null,null,null,null,"",null,null,null,null,null,null,null,null,null,null,"",null,null,null,null,null,null,null,null,"","","","","","","",1,1,"","","","","","","","","","","","","","","","","","","","","","","","","","","","","","","",""]
[36,null,null,"",null,null,null,null,null,null,null,null,null,null,null,null,null,null,null,null,null,null,null,null,null,null,null,null,null,null,null,null,null,null,null,null,null,null,null,null,null,null,null,null,null,null,null,null,null,"",null,null,null,null,null,null,null,null,null,null,null,null,null,null,null,null,null,null,null,null,null,null,null,null,null,null,null,null,null,null,null,null,null,null,null,null,null,null,null,null,null,null,null,null,null,null,null,null,null,null,null,null,null,null,null,null,null,null,null,null,null,null,null,null,null,null,null,null,null,null,null,null,null,null,null,null,null,null,null,null,null,null,null,null,null,null,null,null,null,null,null,null,null,null,null,null,null,null,null,null,"",null,null,null,null,null,null,null,null,"",null,"",null,null,null,null,null,null,null,null,null,null,"",null,null,null,null,null,null,null,null,null,null,"",null,null,null,null,null,null,null,null,"","","","","","","",1,1,"","","","","","","","","","","","","","","","","","","","","","","","","","","","","","","",""]
[37,null,null,"",null,null,null,null,null,null,null,null,null,null,null,null,null,null,null,null,null,null,null,null,null,null,null,null,null,null,null,null,null,null,null,null,null,null,null,null,null,null,null,null,null,null,null,null,null,"",null,null,null,null,null,null,null,null,null,null,null,null,null,null,null,null,null,null,null,null,null,null,null,null,null,null,null,null,null,null,null,null,null,null,null,null,null,null,null,null,null,null,null,null,null,null,null,null,null,null,null,null,null,null,null,null,null,null,null,null,null,null,null,null,null,null,null,null,null,null,null,null,null,null,null,null,null,null,null,null,null,null,null,null,null,null,null,null,null,null,null,null,null,null,null,null,null,null,null,null,"",null,null,null,null,null,null,null,null,"",null,"",null,null,null,null,null,null,null,null,null,null,"",null,null,null,null,null,null,null,null,null,null,"",null,null,null,null,null,null,null,null,"","","","","","","",1,1,"","","","","","","","","","","","","","","","","","","","","","","","","","","","","","","",""]
[38,null,null,"",null,null,null,null,null,null,null,null,null,null,null,null,null,null,null,null,null,null,null,null,null,null,null,null,null,null,null,null,null,null,null,null,null,null,null,null,null,null,null,null,null,null,null,null,null,"",null,null,null,null,null,null,null,null,null,null,null,null,null,null,null,null,null,null,null,null,null,null,null,null,null,null,null,null,null,null,null,null,null,null,null,null,null,null,null,null,null,null,null,null,null,null,null,null,null,null,null,null,null,null,null,null,null,null,null,null,null,null,null,null,null,null,null,null,null,null,null,null,null,null,null,null,null,null,null,null,null,null,null,null,null,null,null,null,null,null,null,null,null,null,null,null,null,null,null,null,"",null,null,null,null,null,null,null,null,"",null,"",null,null,null,null,null,null,null,null,null,null,"",null,null,null,null,null,null,null,null,null,null,"",null,null,null,null,null,null,null,null,"","","","","","","",1,1,"","","","","","","","","","","","","","","","","","","","","","","","","","","","","","","",""]
[39,null,null,"",null,null,null,null,null,null,null,null,null,null,null,null,null,null,null,null,null,null,null,null,null,null,null,null,null,null,null,null,null,null,null,null,null,null,null,null,null,null,null,null,null,null,null,null,null,"",null,null,null,null,null,null,null,null,null,null,null,null,null,null,null,null,null,null,null,null,null,null,null,null,null,null,null,null,null,null,null,null,null,null,null,null,null,null,null,null,null,null,null,null,null,null,null,null,null,null,null,null,null,null,null,null,null,null,null,null,null,null,null,null,null,null,null,null,null,null,null,null,null,null,null,null,null,null,null,null,null,null,null,null,null,null,null,null,null,null,null,null,null,null,null,null,null,null,null,null,"",null,null,null,null,null,null,null,null,"",null,"",null,null,null,null,null,null,null,null,null,null,"",null,null,null,null,null,null,null,null,null,null,"",null,null,null,null,null,null,null,null,"","","","","","","",1,1,"","","","","","","","","","","","","","","","","","","","","","","","","","","","","","","",""]
[40,null,null,"",null,null,null,null,null,null,null,null,null,null,null,null,null,null,null,null,null,null,null,null,null,null,null,null,null,null,null,null,null,null,null,null,null,null,null,null,null,null,null,null,null,null,null,null,null,"",null,null,null,null,null,null,null,null,null,null,null,null,null,null,null,null,null,null,null,null,null,null,null,null,null,null,null,null,null,null,null,null,null,null,null,null,null,null,null,null,null,null,null,null,null,null,null,null,null,null,null,null,null,null,null,null,null,null,null,null,null,null,null,null,null,null,null,null,null,null,null,null,null,null,null,null,null,null,null,null,null,null,null,null,null,null,null,null,null,null,null,null,null,null,null,null,null,null,null,null,"",null,null,null,null,null,null,null,null,"",null,"",null,null,null,null,null,null,null,null,null,null,"",null,null,null,null,null,null,null,null,null,null,"",null,null,null,null,null,null,null,null,"","","","","","","",1,1,"","","","","","","","","","","","","","","","","","","","","","","","","","","","","","","",""]
[41,null,null,"",null,null,null,null,null,null,null,null,null,null,null,null,null,null,null,null,null,null,null,null,null,null,null,null,null,null,null,null,null,null,null,null,null,null,null,null,null,null,null,null,null,null,null,null,null,"",null,null,null,null,null,null,null,null,null,null,null,null,null,null,null,null,null,null,null,null,null,null,null,null,null,null,null,null,null,null,null,null,null,null,null,null,null,null,null,null,null,null,null,null,null,null,null,null,null,null,null,null,null,null,null,null,null,null,null,null,null,null,null,null,null,null,null,null,null,null,null,null,null,null,null,null,null,null,null,null,null,null,null,null,null,null,null,null,null,null,null,null,null,null,null,null,null,null,null,null,"",null,null,null,null,null,null,null,null,"",null,"",null,null,null,null,null,null,null,null,null,null,"",null,null,null,null,null,null,null,null,null,null,"",null,null,null,null,null,null,null,null,"","","","","","","",1,1,"","","","","","","","","","","","","","","","","","","","","","","","","","","","","","","",""]
[42,null,null,"",null,null,null,null,null,null,null,null,null,null,null,null,null,null,null,null,null,null,null,null,null,null,null,null,null,null,null,null,null,null,null,null,null,null,null,null,null,null,null,null,null,null,null,null,null,"",null,null,null,null,null,null,null,null,null,null,null,null,null,null,null,null,null,null,null,null,null,null,null,null,null,null,null,null,null,null,null,null,null,null,null,null,null,null,null,null,null,null,null,null,null,null,null,null,null,null,null,null,null,null,null,null,null,null,null,null,null,null,null,null,null,null,null,null,null,null,null,null,null,null,null,null,null,null,null,null,null,null,null,null,null,null,null,null,null,null,null,null,null,null,null,null,null,null,null,null,"",null,null,null,null,null,null,null,null,"",null,"",null,null,null,null,null,null,null,null,null,null,"",null,null,null,null,null,null,null,null,null,null,"",null,null,null,null,null,null,null,null,"","","","","","","",1,1,"","","","","","","","","","","","","","","","","","","","","","","","","","","","","","","",""]
[43,null,null,"",null,null,null,null,null,null,null,null,null,null,null,null,null,null,null,null,null,null,null,null,null,null,null,null,null,null,null,null,null,null,null,null,null,null,null,null,null,null,null,null,null,null,null,null,null,"",null,null,null,null,null,null,null,null,null,null,null,null,null,null,null,null,null,null,null,null,null,null,null,null,null,null,null,null,null,null,null,null,null,null,null,null,null,null,null,null,null,null,null,null,null,null,null,null,null,null,null,null,null,null,null,null,null,null,null,null,null,null,null,null,null,null,null,null,null,null,null,null,null,null,null,null,null,null,null,null,null,null,null,null,null,null,null,null,null,null,null,null,null,null,null,null,null,null,null,null,"",null,null,null,null,null,null,null,null,"",null,"",null,null,null,null,null,null,null,null,null,null,"",null,null,null,null,null,null,null,null,null,null,"",null,null,null,null,null,null,null,null,"","","","","","","",1,1,"","","","","","","","","","","","","","","","","","","","","","","","","","","","","","","",""]
[44,null,null,"",null,null,null,null,null,null,null,null,null,null,null,null,null,null,null,null,null,null,null,null,null,null,null,null,null,null,null,null,null,null,null,null,null,null,null,null,null,null,null,null,null,null,null,null,null,"",null,null,null,null,null,null,null,null,null,null,null,null,null,null,null,null,null,null,null,null,null,null,null,null,null,null,null,null,null,null,null,null,null,null,null,null,null,null,null,null,null,null,null,null,null,null,null,null,null,null,null,null,null,null,null,null,null,null,null,null,null,null,null,null,null,null,null,null,null,null,null,null,null,null,null,null,null,null,null,null,null,null,null,null,null,null,null,null,null,null,null,null,null,null,null,null,null,null,null,null,"",null,null,null,null,null,null,null,null,"",null,"",null,null,null,null,null,null,null,null,null,null,"",null,null,null,null,null,null,null,null,null,null,"",null,null,null,null,null,null,null,null,"","","","","","","",1,1,"","","","","","","","","","","","","","","","","","","","","","","","","","","","","","","",""]
[45,null,null,"",null,null,null,null,null,null,null,null,null,null,null,null,null,null,null,null,null,null,null,null,null,null,null,null,null,null,null,null,null,null,null,null,null,null,null,null,null,null,null,null,null,null,null,null,null,"",null,null,null,null,null,null,null,null,null,null,null,null,null,null,null,null,null,null,null,null,null,null,null,null,null,null,null,null,null,null,null,null,null,null,null,null,null,null,null,null,null,null,null,null,null,null,null,null,null,null,null,null,null,null,null,null,null,null,null,null,null,null,null,null,null,null,null,null,null,null,null,null,null,null,null,null,null,null,null,null,null,null,null,null,null,null,null,null,null,null,null,null,null,null,null,null,null,null,null,null,"",null,null,null,null,null,null,null,null,"",null,"",null,null,null,null,null,null,null,null,null,null,"",null,null,null,null,null,null,null,null,null,null,"",null,null,null,null,null,null,null,null,"","","","","","","",1,1,"","","","","","","","","","","","","","","","","","","","","","","","","","","","","","","",""]
[46,null,null,"",null,null,null,null,null,null,null,null,null,null,null,null,null,null,null,null,null,null,null,null,null,null,null,null,null,null,null,null,null,null,null,null,null,null,null,null,null,null,null,null,null,null,null,null,null,"",null,null,null,null,null,null,null,null,null,null,null,null,null,null,null,null,null,null,null,null,null,null,null,null,null,null,null,null,null,null,null,null,null,null,null,null,null,null,null,null,null,null,null,null,null,null,null,null,null,null,null,null,null,null,null,null,null,null,null,null,null,null,null,null,null,null,null,null,null,null,null,null,null,null,null,null,null,null,null,null,null,null,null,null,null,null,null,null,null,null,null,null,null,null,null,null,null,null,null,null,"",null,null,null,null,null,null,null,null,"",null,"",null,null,null,null,null,null,null,null,null,null,"",null,null,null,null,null,null,null,null,null,null,"",null,null,null,null,null,null,null,null,"","","","","","","",1,1,"","","","","","","","","","","","","","","","","","","","","","","","","","","","","","","",""]
[47,null,null,"",null,null,null,null,null,null,null,null,null,null,null,null,null,null,null,null,null,null,null,null,null,null,null,null,null,null,null,null,null,null,null,null,null,null,null,null,null,null,null,null,null,null,null,null,null,"",null,null,null,null,null,null,null,null,null,null,null,null,null,null,null,null,null,null,null,null,null,null,null,null,null,null,null,null,null,null,null,null,null,null,null,null,null,null,null,null,null,null,null,null,null,null,null,null,null,null,null,null,null,null,null,null,null,null,null,null,null,null,null,null,null,null,null,null,null,null,null,null,null,null,null,null,null,null,null,null,null,null,null,null,null,null,null,null,null,null,null,null,null,null,null,null,null,null,null,null,"",null,null,null,null,null,null,null,null,"",null,"",null,null,null,null,null,null,null,null,null,null,"",null,null,null,null,null,null,null,null,null,null,"",null,null,null,null,null,null,null,null,"","","","","","","",1,1,"","","","","","","","","","","","","","","","","","","","","","","","","","","","","","","",""]
[48,null,null,"",null,null,null,null,null,null,null,null,null,null,null,null,null,null,null,null,null,null,null,null,null,null,null,null,null,null,null,null,null,null,null,null,null,null,null,null,null,null,null,null,null,null,null,null,null,"",null,null,null,null,null,null,null,null,null,null,null,null,null,null,null,null,null,null,null,null,null,null,null,null,null,null,null,null,null,null,null,null,null,null,null,null,null,null,null,null,null,null,null,null,null,null,null,null,null,null,null,null,null,null,null,null,null,null,null,null,null,null,null,null,null,null,null,null,null,null,null,null,null,null,null,null,null,null,null,null,null,null,null,null,null,null,null,null,null,null,null,null,null,null,null,null,null,null,null,null,"",null,null,null,null,null,null,null,null,"",null,"",null,null,null,null,null,null,null,null,null,null,"",null,null,null,null,null,null,null,null,null,null,"",null,null,null,null,null,null,null,null,"","","","","","","",1,1,"","","","","","","","","","","","","","","","","","","","","","","","","","","","","","","",""]
[49,null,null,"",null,null,null,null,null,null,null,null,null,null,null,null,null,null,null,null,null,null,null,null,null,null,null,null,null,null,null,null,null,null,null,null,null,null,null,null,null,null,null,null,null,null,null,null,null,"",null,null,null,null,null,null,null,null,null,null,null,null,null,null,null,null,null,null,null,null,null,null,null,null,null,null,null,null,null,null,null,null,null,null,null,null,null,null,null,null,null,null,null,null,null,null,null,null,null,null,null,null,null,null,null,null,null,null,null,null,null,null,null,null,null,null,null,null,null,null,null,null,null,null,null,null,null,null,null,null,null,null,null,null,null,null,null,null,null,null,null,null,null,null,null,null,null,null,null,null,"",null,null,null,null,null,null,null,null,"",null,"",null,null,null,null,null,null,null,null,null,null,"",null,null,null,null,null,null,null,null,null,null,"",null,null,null,null,null,null,null,null,"","","","","","","",1,1,"","","","","","","","","","","","","","","","","","","","","","","","","","","","","","","",""]
[50,null,null,"",null,null,null,null,null,null,null,null,null,null,null,null,null,null,null,null,null,null,null,null,null,null,null,null,null,null,null,null,null,null,null,null,null,null,null,null,null,null,null,null,null,null,null,null,null,"",null,null,null,null,null,null,null,null,null,null,null,null,null,null,null,null,null,null,null,null,null,null,null,null,null,null,null,null,null,null,null,null,null,null,null,null,null,null,null,null,null,null,null,null,null,null,null,null,null,null,null,null,null,null,null,null,null,null,null,null,null,null,null,null,null,null,null,null,null,null,null,null,null,null,null,null,null,null,null,null,null,null,null,null,null,null,null,null,null,null,null,null,null,null,null,null,null,null,null,null,"",null,null,null,null,null,null,null,null,"",null,"",null,null,null,null,null,null,null,null,null,null,"",null,null,null,null,null,null,null,null,null,null,"",null,null,null,null,null,null,null,null,"","","","","","","",1,1,"","","","","","","","","","","","","","","","","","","","","","","","","","","","","","","",""]

{"sheet":"マスターシート","index":2,"n_rows":19,"n_cols":38,"rows_kept":19,"cut":false,"hidden":true,"merged":[]}
[]
[null,"チェックＢＯＸ","免震構造物","共用排水","地盤調査方法","直接基礎_構造方法","直接基礎_形式","杭種","選択","選択○×","選択-","界床","避難器具種類","躯体天井","異なる天井","変更障害","地域区分","開口部住戸位置","出入口","排煙形式","平面形状","等級0_2","等級0_3","等級0_4","等級0_5",null,"等級1_2","等級1_3","等級1_4","等級1_5","等級_320","等級1_8","スラブ厚","温熱環境に関すること","等級5_1","等級5_2","重量床衝撃音対策","軽量床衝撃音対策"]
[null,"□"]
[null,"■","免震建築物","共用廊下に面する共用部分","標準貫入試験","鉄筋コンクリート造","ベタ基礎","支持杭","○","○","―","なし","避難はしご","地上","該当なし","なし","Ⅰ","地下","有効","a.開放型廊下","a.２方向避難",2,3,4,5,null,2,3,4,5,3,8,0,"熱損失係数",7,8,"対策等級","対策等級"]
[null,null,"その他","外壁面、吹き抜け等の住戸外周部","スクリューウエイト貫入試験","直接基礎","独立基礎","摩擦杭",null,"×",null,"上階","滑り棒","地下","はり","壁","Ⅱ","地上","シャッター","b.自然排煙","b.直通階段",1,2,3,4,null,1,2,3,4,2,7,"a","熱貫流率",6,7,"相当スラブ厚","レベル低減量"]
[null,null,null,"バルコニー","スウェーデン式サウンディング試験","SB工法","布基礎",null,null,null,null,"下階","避難ロープ","その他","傾斜屋根","柱","Ⅲ","屋上","その他","c.機械排煙(一般)","c.その他",0,1,2,3,null,null,1,2,3,0,6,"b",null,5,6]
[null,null,null,"住戸専用部","平板載荷試験",null,null,null,null,null,null,"上階及び下階","避難用タラップ",null,"その他","壁柱","Ⅳ","中間階","無し","d.機械排煙(加圧式)",null,null,0,1,2,null,null,null,1,2,null,5,"c",null,4,5]
[null,null,null,"その他","表面波探査法 ",null,null,null,null,null,null,null,"滑り台",null,null,null,"Ⅴ","その他",null,"e.その他",null,null,null,0,1,null,null,null,null,1,null,4,"d",null,3,4,"ｲ：対策等級","ｲ：対策等級"]
[null,null,null,null,null,null,null,null,null,null,null,null,"緩降機",null,null,null,"Ⅵ",null,null,null,null,null,null,null,0,null,null,null,null,null,null,3,"e",null,2,1,"ﾛ：相当スラブ厚","ﾛ：レベル低減量"]
[null,null,null,null,null,null,null,null,null,null,null,null,"避難橋",null,null,null,null,null,null,null,null,null,null,null,null,null,null,null,null,null,null,2,null,null,1]
[null,null,null,null,null,null,null,null,null,null,null,null,"救助袋",null,null,null,null,null,null,null,null,null,null,null,null,null,null,null,null,null,null,1]
[]
["自己評価書で不要になって移動したセル名："]
[]
["work_tower_N01_6_JIBAN_TYOUSA_2"]
[]
["work_tower_N01_6_JIBAN_TYOUSA_3"]
[]
["work_tower_N01_6_JIBAN_TYOUSA_4"]